Cogmind - Beta 16 @@@ ROGUE MODE // 2025.10.26 @ 17:54:46 Player: Wyvric Result: Establishing 0b11! Performance ------------- Evolutions (9) 4500 Regions Visited (35) 7000 Robots Destroyed (1412) 7060 Value Destroyed (92961) 92961 Prototype IDs (369) 7380 Alien Tech Used (5) 1000 Bonus (131336) 131336 TOTAL SCORE: 251237 Bonus ------- Triggered High Security 1500 High Alert Combat Kills 65000 Follower Combat Kills 1849 Destroyed Unchained 1000 Network Hubs Disabled 200 Met Data Miner 300 Met Zhirov 300 Met Warlord at Base 500 MAIN.C Attacked Warlord 500 Warlord Defense Kills 540 Built Enhanced Grunts 300 Met R17 at Cetus 500 Met R17 at Research 2000 Scanned by Researcher 500 Destroyed Superfortress 15000 Recovered Sigix Corpse 2000 Destroyed MAIN.C Guards 500 Met MAIN.C 5000 Destroyed MAIN.C Shell 5000 Destroyed MAIN.C 10000 Met Architect 300 Destroyed A8 300 Destroyed A6 400 Destroyed A5 500 Destroyed A4 700 Destroyed A3 800 Destroyed A2 1000 Destroyed Architect 15000 Win 3000 Friendly Fire -3153 Cogmind --------- Core Integrity 490/1600 Matter 220/300 Energy 7882/7888 System Corruption 1% Temperature Cool (6) Movement Hovering (89) Location 0b11 Command Parts ------- > --- POWER (3) -------- Quantum-Point Reactor > --- PROPULSION (6) --- Hovering HC-Antigrav Exoskeleton > --- UTILITY (12) ----- Armored Scrap Engine Concept Antigrav Storage Unit Experimental Core Analyzer Improved Armor Integrity Analyzer Precision Matter Filter Experimental Weapon Cycler Advanced Phase Shifter Experimental Powered Armor Experimental Powered Armor Graphene Brace Advanced Remote Force Field > --- WEAPON (4) ------- Prc. Thermal Plasma Construct/C > --- INVENTORY (25) --- Hybrid Graviton Reactor Desublimator Advanced Coolant Injector Experimental Coolant Injector Experimental Coolant Injector Concept Thermoelectric Network Huge Storage Unit Experimental Matter Compressor (500) Experimental Matter Compressor (336) Experimental Matter Compressor (114) Concept NT7 Matterbank (750) Advanced Terrain Scanner Concept Weapon Articulator Experimental Core Analyzer Experimental Weapon Cycler Experimental Weapon Cycler Architect God Chip A Architect God Chip D Architect God Chip D Concept Matter Streamer Concept Impact Drone Bay (2/6) Sigix Corpse Peak State ------------ > --- POWER ------------ Quantum-Point Reactor > --- PROPULSION ------- Hovering HC-Antigrav Exoskeleton > --- UTILITY ---------- Armored Scrap Engine Concept Thermoelectric Network Concept Antigrav Storage Unit Zeronet Interface Experimental Core Analyzer Experimental Weapon Cycler Concept Reaction Jets Advanced Phase Shifter Concept Cloak Mesh Graphene Brace Concept Energy Mantle > --- WEAPON ----------- Concept Lightning Penetrator Prc. Thermal Plasma Construct/C > --- INVENTORY -------- Quantum Reactor Light Quantum Reactor Hybrid Graviton Reactor Experimental Coolant Injector Experimental Coolant Injector Concept Thermoelectric Network Concept Chromion Battery Concept NT7 Matterbank Concept Weapon Articulator Experimental Core Analyzer Precision Matter Filter Experimental Kinecellerator Experimental Kinecellerator Concept Cloak Mesh Centrium Light Armor Plating Advanced Force Field Concept Matter Streamer Concept Impact Drone Bay Concept Impact Drone Bay Transdimensional Reconstructor Concept Plasma Driver Concept Plasma Driver Concept XC Strikerail Concept Arcsight Missile Launcher Concept Tiamat Rocket Array [Rating: 294] Favorites ----------- Power Constructs Engine Ion Engine Reactor Constructs Propulsion Constructs Treads Light Treads Leg Carbon-fiber Leg Wheel Wheel Hover Unit Constructs Utility Armored Scrap Engine Device Armored Scrap Engine Storage Huge Storage Unit Processor Experimental Core Analyzer Hackware Makeshift Hacking Suite Protection Experimental Powered Armor Artifact Phase Armor Weapon Constructs Energy Gun Concept Lightning Penetrator Energy Cannon Constructs Ballistic Gun Constructs Ballistic Cannon Enhanced Hardcell Cannon Launcher Concept Arcsight Missile Launcher Special Weapon Plasma Cutter Impact Weapon Power Maul Slashing Weapon Makeshift Axe Build | -11 -10 -10 -9 -9 -9 -7 -7 -7 -7 -6 -6 -6 -6 -6 -6 -5 -5 -5 -5 -4 -4 -4 -4 -4 -4 -4 -3 -3 -3 -2 -2 -2 -1 -1 -1 ------- Run | Yrd Mat Min Mat Sto Rec Fac Low Low Dat Pro Fac Ext Cet Arc Hub Fac Upp Upp War Pro Fac Was Fac Upp Upp Zhi Pro Res Qua Res Tes Frg Acc Com Ac0 Slots Evolved 18 | . . . 2 . . 4 . . . . 2 . . . . 2 . . . . 2 . . . . . . 2 . 2 . . 2 . . Power 2 | . . . . . . . . . . . . . . . . 1 . . . . . . . . . . . 1 . . . . . . . Propulsion 4 | . . . 1 . . 2 . . . . 1 . . . . . . . . . . . . . . . . . . . . . . . . Utility 10 | . . . 1 . . 1 . . . . 1 . . . . 1 . . . . 2 . . . . . . . . 2 . . 2 . . Weapon 2 | . . . . . . 1 . . . . . . . . . . . . . . . . . . . . . 1 . . . . . . . Parts Attached 325 | 6 6 4 27 9 4 8 5 10 . 1 3 8 3 2 3 5 1 . 2 5 11 3 13 10 2 2 1 20 8 18 11 37 15 49 13 Power 9 | 1 1 1 1 1 . . . . . 1 . . . . . 1 . . . . . . . . . . . 1 . 1 . . . . . Engine 6 | 1 1 1 1 1 . . . . . 1 . . . . . . . . . . . . . . . . . . . . . . . . . Core . | . . . . . . . . . . . . . . . . . . . . . . . . . . . . . . . . . . . . Reactor 3 | . . . . . . . . . . . . . . . . 1 . . . . . . . . . . . 1 . 1 . . . . . Propulsion 17 | 2 1 1 7 2 . 3 1 . . . . . . . . . . . . . . . . . . . . . . . . . . . . Treads 6 | 2 1 1 . . . 2 . . . . . . . . . . . . . . . . . . . . . . . . . . . . . Leg 5 | . . . 3 2 . . . . . . . . . . . . . . . . . . . . . . . . . . . . . . . Wheel 6 | . . . 4 . . 1 1 . . . . . . . . . . . . . . . . . . . . . . . . . . . . Hover . | . . . . . . . . . . . . . . . . . . . . . . . . . . . . . . . . . . . . Flight . | . . . . . . . . . . . . . . . . . . . . . . . . . . . . . . . . . . . . Utility 231 | 1 3 1 8 1 2 5 2 4 . . 3 7 3 2 3 4 1 . 1 4 11 3 11 7 2 1 1 15 6 12 7 31 13 43 13 Device 139 | . . 1 . . 1 3 2 3 . . 1 4 . 2 1 2 1 . 1 3 6 1 8 5 1 . . 9 3 8 2 22 6 33 10 Storage 15 | 1 1 . 1 . . 1 . . . . 1 . 1 . . . . . . . . 1 1 . . . . 1 1 1 1 2 1 . . Processor 34 | . . . 1 . . 1 . 1 . . . 2 . . . 1 . . . 1 3 . 2 1 . . . . 1 3 2 6 3 6 . Hackware 10 | . . . 1 . . . . . . . . 1 . . 2 . . . . . 2 . . . 1 . . 2 . . 1 . . . . Protection 32 | . 2 . 5 1 1 . . . . . 1 . 2 . . 1 . . . . . 1 . 1 . 1 1 3 1 . . 1 3 4 3 Artifact 1 | . . . . . . . . . . . . . . . . . . . . . . . . . . . . . . . 1 . . . . Weapon 68 | 2 1 1 11 5 2 . 2 6 . . . 1 . . . . . . 1 1 . . 2 3 . 1 . 4 2 5 4 6 2 6 . Energy Gun 12 | . . . 3 . 2 . . . . . . 1 . . . . . . . . . . 1 . . . . . 1 . 2 2 . . . Energy Cannon 13 | . . . . . . . . 2 . . . . . . . . . . 1 1 . . 1 . . . . 2 1 3 2 . . . . Ballistic Gun 19 | 2 1 1 6 3 . . . 2 . . . . . . . . . . . . . . . 1 . . . . . . . . 1 2 . Ballistic Cannon 6 | . . . . . . . . 1 . . . . . . . . . . . . . . . . . . . . . 2 . 1 . 2 . Launcher 12 | . . . 2 . . . . 1 . . . . . . . . . . . . . . . . . 1 . 2 . . . 3 1 2 . Special Weapon 1 | . . . . 1 . . . . . . . . . . . . . . . . . . . . . . . . . . . . . . . Impact Weapon 3 | . . . . 1 . . 1 . . . . . . . . . . . . . . . . 1 . . . . . . . . . . . Slashing Weapon 2 | . . . . . . . 1 . . . . . . . . . . . . . . . . 1 . . . . . . . . . . . Piercing Weapon . | . . . . . . . . . . . . . . . . . . . . . . . . . . . . . . . . . . . . Special Melee Weapon . | . . . . . . . . . . . . . . . . . . . . . . . . . . . . . . . . . . . . Unidentified Prototypes 47 | . . . 2 2 1 . . . . . . . 2 . 1 . 1 . . 1 . . 3 . . 2 . 3 2 . 4 11 2 8 2 Corrupted Parts 1 | . . . . . . . . . . . . . . 1 . . . . . . . . . . . . . . . . . . . . . System Corruption 2 | . . . . . . . . . . . . . . 2 . . . . . . . . . . . . . . . . . . . . . Parts Lost 55 | . . . 5 2 2 1 . 3 . 1 . . . . 2 . . . . . 2 2 9 1 . . 2 1 3 . . 2 2 8 7 Power 3 | . . . 1 . . . . . . 1 . . . . . . . . . . . . 1 . . . . . . . . . . . . Propulsion 5 | . . . 2 2 1 . . . . . . . . . . . . . . . . . . . . . . . . . . . . . . Utility 39 | . . . 2 . 1 1 . 1 . . . . . . 1 . . . . . 1 2 5 1 . . 2 1 3 . . 2 2 7 7 Weapon 8 | . . . . . . . . 2 . . . . . . 1 . . . . . 1 . 3 . . . . . . . . . . 1 . Highest Loss Streak 6 | . . . 4 1 2 1 . 2 . 1 . . . . 2 . . . . . 1 2 5 6 . . 1 1 1 . . 2 1 4 3 To Critical Strikes 3 | . . . . 1 . . . . . . . . . . . . . . . . 1 . 1 . . . . . . . . . . . . Average Backups 22 | 4 11 14 17 18 17 22 24 22 24 24 22 22 20 23 23 22 24 24 21 23 24 17 20 22 23 23 22 23 22 22 23 22 24 23 23 Power . | . 1 1 . . . . . . 1 . . 1 1 1 1 . 1 1 1 1 1 . . . . 1 1 . . . . 1 1 1 1 Propulsion 2 | 2 5 5 3 4 5 3 3 4 4 3 1 2 3 1 1 3 4 6 6 9 8 5 9 8 8 6 1 1 3 3 2 1 . . . Utility 12 | . 2 3 5 1 3 8 9 9 10 11 13 9 8 11 10 10 10 10 10 10 11 10 8 13 13 12 16 13 12 11 10 14 16 18 20 Weapon 5 | . 2 4 7 11 7 9 9 7 7 6 6 8 7 8 10 7 8 7 3 2 3 . 1 . 2 2 3 6 2 3 6 3 5 2 . Tool/Special . | . . . . . . . . . . . . . . . . . . . . . . . . . . . . . . . . . . . . Unused Backups 372 | . 4 3 7 3 13 26 9 7 2 4 6 19 9 9 8 11 8 . 3 13 15 10 14 5 2 8 9 29 9 15 12 33 7 22 18 Power 15 | . 1 . . . . 3 . 1 . . . . . . 1 . . . . . . . . . . . . 1 . . . 5 1 1 1 Propulsion 114 | . 3 . . 1 9 5 1 4 . 3 1 5 3 4 . 3 . . . 7 5 7 5 2 . 8 6 8 3 9 4 4 . 4 . Utility 112 | . . 1 3 2 1 6 . 1 . 1 5 3 3 5 4 1 1 . . 1 4 2 1 3 1 . . 8 4 4 5 13 5 9 15 Weapon 130 | . . 2 4 . 3 12 8 1 2 . . 11 3 . 3 7 7 . 3 5 6 1 8 . 1 . 3 12 1 2 3 11 1 8 2 Tool/Special 1 | . . . . . . . . . . . . . . . . . . . . . . . . . . . . . 1 . . . . . . Average Slot Usage (%) 55 | . 99 100 92 87 63 50 50 56 60 59 54 53 46 46 45 47 38 41 37 48 51 46 48 52 56 47 53 50 50 55 55 52 59 52 55 Engine 2 | . 14 14 10 11 9 7 7 4 . . 2 4 4 . 1 2 . 2 . . . . . . . . . . . . . . . . . Core 1 | . . . . . . . . 2 7 6 . . . . . 2 5 2 5 2 . . . . 1 5 3 . . . . 2 . . . Reactor 2 | . . . . . . . . . . . 3 1 1 6 4 . . . . 2 5 5 4 5 3 . 1 4 4 4 6 1 3 4 4 Treads 2 | . 28 28 3 . 4 2 . . . . . . . 1 1 5 5 5 5 . . . . . . . . 1 3 . 2 . 1 . . Leg 3 | . . . 19 32 11 4 3 2 . . . 2 5 . . . . . . . . 4 5 3 1 5 2 . . . . . 2 3 2 Device 17 | . . 4 1 . 8 14 15 13 15 15 13 11 10 8 7 8 11 11 11 16 18 17 20 18 26 19 24 16 17 20 17 22 35 24 20 Storage 5 | . 14 14 11 11 11 7 7 7 7 7 6 6 6 6 6 5 5 5 5 5 5 3 5 5 5 5 5 4 4 4 4 4 4 4 4 Processor 4 | . . . . . . . . . . . . 4 6 6 5 3 . . . 5 5 5 2 4 5 5 5 4 4 11 13 8 3 6 9 Protection 2 | . 13 9 10 11 2 . . . . . 2 . 2 3 5 4 . . . . . 1 2 3 . . 1 1 3 1 . . . 4 10 Energy Gun 1 | . . . 7 . . . . . . 7 6 8 . . . . 2 5 1 . . . . 5 4 . . . . . . . 3 . . Energy Cannon 2 | . . . . . 3 . 5 13 12 6 7 3 . 6 5 3 5 3 4 2 . . 1 . 1 5 1 3 1 3 1 1 . . 4 Ballistic Gun 2 | . 28 28 14 20 5 . . . . 2 1 1 . . . 3 . . . . . . . . . . . . . . . . . . . Ballistic Cannon 2 | . . . . . 2 7 1 2 . . . . 5 . . 2 . 1 1 3 4 5 4 . . . 3 2 4 4 4 3 4 3 . Peak Build Rating 294 | 6 8 9 32 31 40 55 61 66 66 65 80 80 100 101 105 121 124 131 133 126 128 129 149 134 132 131 132 166 170 193 210 270 294 288 257 Average Rating 148 | 5 7 8 25 29 36 49 56 56 65 61 71 72 82 88 89 111 120 125 123 119 124 120 135 127 125 116 122 138 164 182 195 226 291 260 251 On Entrance 105 | . 6 8 9 31 29 39 52 59 66 63 62 75 74 100 85 100 112 123 131 95 118 123 111 119 127 121 131 120 157 168 186 203 270 288 246 Avg Prop Armor Cover (%) 6 | . . . 12 . 7 5 2 . . . . . . . . . . . . . . . . . . . . . . . . . . . . Naked Turns . | . . . . . . . . . . . . . . . . . . . . . . . . . . . . . . . . . . . . Heaviest Build 232 | 10 30 30 70 70 69 101 103 111 111 106 127 127 111 105 111 131 109 132 143 160 158 140 155 145 139 145 145 181 171 196 216 232 142 164 186 Greatest Support 383 | 40 40 40 45 45 73 110 105 95 95 95 99 110 81 172 127 240 240 240 240 240 240 240 240 189 137 206 224 210 210 210 374 383 383 383 275 Greatest Overweight (x) 5 | . . . 5 2 4 1 1 1 1 1 2 2 1 1 . . . . . . . . . 1 1 1 1 2 . . 1 . . . . Average Overweight (x) . | . . . 1 1 . . . 1 1 . 1 1 1 . . . . . . . . . . . . . . 1 . . . . . . . Largest Inventory Capacity 25 | 8 15 15 20 20 20 25 25 25 25 25 25 25 25 25 25 25 25 25 25 25 25 25 25 25 25 25 25 25 25 25 25 25 25 25 25 Average Capacity 24 | 6 12 15 19 20 20 23 25 25 25 25 25 25 25 25 25 25 25 25 25 25 25 18 25 25 25 25 25 25 25 25 25 25 25 25 25 Most Carried 25 | 8 15 15 20 20 20 25 25 25 25 25 25 25 25 25 25 25 25 25 25 25 25 25 25 25 25 25 25 25 25 25 25 25 25 25 25 Average Carried 23 | 4 11 14 18 19 17 22 24 23 24 24 24 23 23 24 24 24 24 24 21 23 24 17 20 24 24 24 23 24 24 24 24 23 24 24 23 Final Capacity 25 | 8 15 15 20 20 20 25 25 25 25 25 25 25 25 25 25 25 25 25 25 25 25 25 25 25 25 25 25 25 25 25 25 25 25 25 25 Final Carried 25 | 8 15 15 19 20 20 25 24 25 25 23 25 20 25 25 23 25 24 25 21 25 25 3 24 25 24 24 21 22 24 25 24 25 25 25 22 Scrap Engine Consumption 652 | . . . . . 46 38 21 26 2 6 12 88 11 18 4 19 18 6 7 19 21 4 24 8 16 15 21 40 11 33 12 44 17 42 3 Constructs Created 12 | . . . . . 3 . . . 2 . 1 1 . . . 1 1 . . . . . . . 1 . . . . . . . . 2 . Constructs Modified 282 | . . . . . 10 17 14 8 . 4 5 36 4 6 5 10 1 4 8 10 6 2 13 5 6 5 11 23 4 6 14 17 6 19 3 Class Distribution -------------------- 63% | Construct 16% | Scavenger-Construct 7% | Mutant 7% | Commander-Construct Dominant Class ---------------- Mutant | -10/Materials Mutant | -10/Mines Mutant | -9/Materials Mutant | -9/Storage Commander-Construct | -9/Recycling Construct | -7/Factory Construct | -7/Lower Caves Construct | -7/Lower Caves Construct | -7/Data Miner Construct | -6/Proximity Caves Construct | -6/Factory Construct | -6/Extension Commander-Construct | -6/Cetus Commander-Construct | -6/Archives Commander-Construct | -6/Hub_04(d) Construct | -5/Factory Construct | -5/Upper Caves Construct | -5/Upper Caves Construct | -5/Warlord Construct | -4/Proximity Caves Construct | -4/Factory Construct | -4/Waste Construct | -4/Factory Construct | -4/Upper Caves Construct | -4/Upper Caves Construct | -4/Zhirov Construct | -3/Proximity Caves Construct | -3/Research Infiltrator-Construct | -3/Quarantine Construct | -2/Research Construct | -2/Testing Construct | -2/Protoforge Construct | -1/Access Scavenger-Construct | -1/Command Scavenger-Construct | -1/Access_0 Resources | -11 -10 -10 -9 -9 -9 -7 -7 -7 -7 -6 -6 -6 -6 -6 -6 -5 -5 -5 -5 -4 -4 -4 -4 -4 -4 -4 -3 -3 -3 -2 -2 -2 -1 -1 -1 ----------- Run | Yrd Mat Min Mat Sto Rec Fac Low Low Dat Pro Fac Ext Cet Arc Hub Fac Upp Upp War Pro Fac Was Fac Upp Upp Zhi Pro Res Qua Res Tes Frg Acc Com Ac0 Matter Collected 27888 | 132 315 120 700 255 346 164 405 354 . 288 42 399 181 44 79 75 47 250 57 341 344 . 1183 849 126 117 374 452 1082 1233 637 4970 2477 5631 3819 Remotely 5864 | . . . . . . . . . . . . . . . . . . . . . . . 180 . . . . . 101 550 226 2146 803 1125 733 Salvage Created 90315 | 24 516 50 1545 565 1011 502 752 913 . 330 42 1424 433 450 958 753 456 288 192 912 469 . 1489 585 94 392 564 467 921 1552 628 7893 24206 34661 4278 Parts 3338 | 4 37 2 93 36 43 40 21 24 . 9 1 32 17 36 55 28 17 15 12 50 28 . 65 16 1 12 26 19 40 63 46 279 670 1293 208 Haulers Intercepted 8 | . 1 . 1 . . . . . . . . . . . . 1 . . . . . . 1 . . . . . . . . . 4 . . Recyclers Shooed 15 | . . . 2 . 5 . . . . . . 3 . . . . . . . . . . 3 . . . . . . . 1 . 1 . . Parts Field Recycled 33 | . . . . . . . . . . . . . . . . . . . . . . . 33 . . . . . . . . . . . . Retrieved Matter 389 | . . . . . . . . . . . . . . . . . . . . . . . 389 . . . . . . . . . . . . Parts Self-Destructed 90 | . . . . . . . 12 14 . 4 . . . . . . 2 8 . 29 . . . 11 3 2 5 . . . . . . . . Prevented 63 | . . . . . . . 4 5 . . . . . . . . 13 4 . 14 . . . . 4 . 19 . . . . . . . . Parts Restored 4 | . . . . . . . . . . . . . . . . . . . . . . . . . . . . . . . . 4 . . . Faulty 4 | . . . . . . . . . . . . . . . . . . . . . . . . . . . . . . . . 4 . . . Kills | -11 -10 -10 -9 -9 -9 -7 -7 -7 -7 -6 -6 -6 -6 -6 -6 -5 -5 -5 -5 -4 -4 -4 -4 -4 -4 -4 -3 -3 -3 -2 -2 -2 -1 -1 -1 ------- Run | Yrd Mat Min Mat Sto Rec Fac Low Low Dat Pro Fac Ext Cet Arc Hub Fac Upp Upp War Pro Fac Was Fac Upp Upp Zhi Pro Res Qua Res Tes Frg Acc Com Ac0 Combat Hostiles Destroyed 1335 | . 16 6 30 12 6 14 13 11 . 8 1 13 5 2 15 13 9 7 3 12 7 . 25 4 . . 10 8 25 18 6 153 291 545 47 Guns 72 | . 16 6 26 12 3 . . 3 . 1 . 3 . . . . . . . . . . . 2 . . . . . . . . . . . Cannons 989 | . . . . . 3 11 9 7 . . 1 7 4 2 14 12 5 7 3 9 4 . 16 . . . 1 1 8 15 6 109 274 414 47 AOE 237 | . . . 4 . . 3 2 . . 7 . . . . . . 3 . . . . . 5 . . . 6 4 17 2 . 39 17 128 . Classes Destroyed 35 | 1 3 1 7 . 3 3 1 1 . . . 1 . . 2 . . . 1 . . . . . . . . 1 1 . . 9 . . . Worker 34 | . . . 3 . . . . . . . . . . . 1 . . . . . . . 5 . . . . . 1 . . 3 13 8 . Builder 20 | . . . . . 1 . . . . . . . . . . . . . . . 1 . 1 . . . . . . 2 4 1 10 . . Tunneler 3 | 1 . . . . . . . . . . . . . . . . . . . . 1 . 1 . . . . . . . . . . . . Hauler 8 | . 1 . 1 . . . . . . . . . . . . 1 . . . . . . 1 . . . . . . . . . 4 . . Recycler 35 | . . . 3 . 8 1 . . . . . 5 . . . . . . . . . . 1 . . . . . 1 3 2 . 5 6 . Carrier 25 | . . . . . . . . . . . . . . . . . . . . . . . . . . . . . . . . 2 18 5 . Minesweeper 3 | . . . . . . . 1 . . . . . . . . . . . . 1 . . . 1 . . . . . . . . . . . Mechanic 26 | . . . . . . . . . . . . . . . . . . . . . . . . . . . . . . . . 2 11 13 . Operator 15 | . . . 1 . . . . . . . . . . 9 . . . . . . . . . . . . . 1 . . . 1 . 3 . Drone 14 | . . . . . . . . . . . . . . . . . . . . . . . . . . . . . . . . 12 . 1 1 Watcher 31 | . . . 2 . . . . . . . . . . . 1 . . . . . . . . . . . . 1 2 5 1 . 7 12 . Swarmer 107 | . 9 2 11 . . 3 1 . . . . 1 . . . 4 4 5 . . 1 . 6 . . . 5 4 3 . . 1 11 36 . Cutter 34 | . . . . . . . . . . . . . . . . . . . . . . . . . . . . . . . . . 22 12 . Saboteur 48 | . . . . . . . . . . . . . . . . . . . . . . . . . . . . . . . . 6 20 22 . Grunt 384 | . 7 . 8 6 . . 4 9 . 6 . 7 . . 6 3 2 . . 6 2 . 9 2 . . 1 . 14 7 . 47 80 158 . Brawler 73 | . . . 1 1 . . 2 . . 1 . . . . . 1 1 . . . . . . . . . . . . . . 8 17 41 . Duelist 65 | . . . 1 . . . 1 1 . . . . . . . . . . . . . . 2 . . . . . . 1 . 6 17 36 . Protector 33 | . . . . . . . . . . . . . . . . . . . . . . . . . . . . . . . . 4 8 21 . Researcher 5 | . . . . . . . . . . . . . . . . . . . . . . . . . . . . . 1 . . 4 . . . Sentry 69 | . . . 9 5 3 3 2 . . . . 3 . 2 . 2 1 1 . . 2 . 3 . . . . 1 . 2 . 12 12 6 . Demolisher 17 | . . . . . . 2 . . . . . . . . . . . . . . . . . . . . . . . . . . . 15 . Specialist 35 | . . . . . . . . . . . . . . . 2 . . . . . . . . . . . 1 . . . . 1 7 24 . Hunter 108 | . . . . . . 1 2 1 . . . . . . 1 1 . 1 . 4 2 . . . . . 2 . 4 . . 7 26 56 . Programmer 151 | . . . . . . 2 1 . . 1 1 . . . 3 2 . . 2 2 . . 5 2 . . 1 . 4 8 6 17 29 65 . Heavy 5 | . . . . . . . . . . . . . . . 1 . . . . . . . . . . . . . . . . . 2 2 . Q-Series 4 | . . . . . . . . . . . . . . . . . . . . . . . . . . . . . . . . 2 2 . . Behemoth 10 | . . . . . . . . . . . . 2 . . . . 1 . . . . . . . . . . . . . . . 3 4 . Cetus Guard 5 | . . . . . . . . . . . . . 5 . . . . . . . . . . . . . . . . . . . . . . M Guard 2 | . . . . . . . . . . . . . . . . . . . . . . . . . . . . . . . . . . 2 . Enhanced Grunt 32 | . . . . . . . . . . . . . . . . . . . . . . . . . . . . . . . . . . . 32 Enhanced Sentry 2 | . . . . . . . . . . . . . . . . . . . . . . . . . . . . . . . . . . . 2 Enhanced Hunter 7 | . . . . . . . . . . . . . . . . . . . . . . . . . . . . . . . . . . . 7 Lightning 2 | . . . . . . . . . . . . . . . 2 . . . . . . . . . . . . . . . . . . . . Decapitator 10 | . . . . . . . . . . . . . . . . . . . . . . . . . . . . . . . . 10 . . . Immortal 5 | . . . . . . . . . . . . . . . . . . . . . . . . . . . . . . . . 5 . . . Combat Programmer 2 | . . . . . . . . . . . . . . . . . . . . . . . . . . . . . . . . . . 2 . Investigator 5 | . . . . . . . . . . . . . . . . . . . . . . . . . . . . . . . . . 3 2 . Striker 35 | . . . . . . . . . . . . . . . . . . . . . . . . . . . . 2 . . . . 14 19 . Executioner 41 | . . . . . . . . . . . . . . . . . . . 1 . . . . . . . . 1 . . . . 20 19 . Alpha 7 4 | . . . . . . . . . . . . . . . . . . . . . . . . . . . . . . . . 2 . 2 . V-Series 12 | . . . . . . . . . . . . . . . . . . . . . . . . . . . . . . . . 12 . . . Scientist 2 | . . . . . 2 . . . . . . . . . . . . . . . . . . . . . . . . . . . . . . Scrapper 3 | . . . . . 3 . . . . . . . . . . . . . . . . . . . . . . . . . . . . . . Decomposer 3 | . . . . . . . . 1 . . . . . . . . . . . 1 . . . . 1 . . . . . . . . . . Packrat 2 | . . . . . . . . . . . . . . . . . . . . . . . . 2 . . . . . . . . . . . Samaritan 5 | . . . . . . . . 1 . 2 . . . . . . . . . . . . . 2 . . . . . . . . . . . Assembled 7 | . . 4 . . . 3 . . . . . . . . . . . . . . . . . . . . . . . . . . . . . Savage 1 | . . . . . . . . . . . . . . . . . . . . . . . . 1 . . . . . . . . . . . Guerrilla 1 | . . . . . . . . . . . . 1 . . . . . . . . . . . . . . . . . . . . . . . Best Kill Streak 47 | 1 6 3 6 4 3 3 5 3 . 4 1 3 3 2 4 6 4 4 2 4 3 . 8 2 . . 6 4 8 6 7 24 42 47 7 Combat Bots Only 47 | . 6 3 4 4 3 3 5 3 . 4 1 3 3 2 4 6 4 4 2 4 3 . 5 2 . . 6 4 6 6 3 23 37 47 7 Max Kills in Single Turn 15 | 1 1 1 4 2 1 3 1 1 . 2 1 1 1 1 2 1 3 1 1 1 2 . 6 1 1 . 1 4 3 2 1 8 6 15 2 Gunslinging 1 | . . . . 1 . . . . . . . . . . . . . . . . . . . . . . . . . . . . . . . Exploded 15 | . . . 3 . . 3 1 . . 2 . . . . . . 3 . . . . . 4 . . . 1 4 2 1 . 8 5 15 . Melee . | . . . . . . . . . . . . . . . . . . . . . . . . . . . . . . . . . . . . Uniques/NPCs Destroyed 12 | . . . . . . . . . . . . . 1 . . . . . . . . . . . . . . . . . . 1 1 2 7 A7 (-6/Cetus) Superfortress (-2/Protoforge) 6S-H0T (-1/Access) MAIN.C Shell (-1/Command) MAIN.C (-1/Command) A8 (-1/Access_0) A6 (-1/Access_0) A2 (-1/Access_0) A5 (-1/Access_0) Architect (-1/Access_0) A4 (-1/Access_0) A3 (-1/Access_0) Combat | -11 -10 -10 -9 -9 -9 -7 -7 -7 -7 -6 -6 -6 -6 -6 -6 -5 -5 -5 -5 -4 -4 -4 -4 -4 -4 -4 -3 -3 -3 -2 -2 -2 -1 -1 -1 -------- Run | Yrd Mat Min Mat Sto Rec Fac Low Low Dat Pro Fac Ext Cet Arc Hub Fac Upp Upp War Pro Fac Was Fac Upp Upp Zhi Pro Res Qua Res Tes Frg Acc Com Ac0 Hostile Shots Fired 4222 | . 61 16 137 44 41 153 88 96 . 54 7 240 26 3 157 91 45 22 97 93 77 7 422 45 2 . 58 46 165 194 40 444 242 633 376 Missed 1662 | . 14 4 38 11 7 55 31 26 . 16 4 92 7 . 28 24 17 5 27 32 35 . 168 7 . . 19 14 60 74 13 169 74 375 216 Intercepted 4 | . . . . . . . . . . . . . . . . . . . . . . . . . . . . . . . . . . 4 . Deflected 6 | . . . . . . . . . . . . . . . . . . . . . . . . 6 . . . . . . . . . . . Hits 2560 | . 47 12 99 33 34 98 57 70 . 38 3 148 19 3 129 67 28 17 70 61 42 7 254 38 2 . 39 32 105 120 27 275 168 258 160 Melee 56 | . . 1 1 . . 1 1 3 . . . . . . . 1 . . 8 . . 7 . . . . . 10 . . . 12 1 6 4 Projectile 2504 | . 47 11 98 33 34 97 56 67 . 38 3 148 19 3 129 66 28 17 62 61 42 . 254 38 2 . 39 22 105 120 27 263 167 252 156 AOE 122 | . . . . . . 3 . . . . . . . . . 2 . . . . . . 1 . . . . 1 . 1 . 28 45 40 1 Critical Strikes 156 | . 1 . 2 1 4 1 1 3 . 2 . . 7 . 12 3 1 . 5 2 1 2 9 4 1 . 3 1 9 10 4 21 7 15 24 Actively Blocked 46 | . . . . . . . . . . . . . . . . . . . . . . . . . . . . . . . 1 18 7 15 5 Part Disruptions 3 | . . . . . . 1 . . . . . . . . . . . . . . . . . 1 . . . . . . . . 1 . . Damage Taken 47296 | . 494 140 1265 495 661 744 727 1105 . 604 42 1445 374 69 3193 1319 528 272 1368 861 953 351 5304 676 50 . 1028 1395 2113 2024 379 5632 2330 6255 3100 Core 4073 | . 124 11 84 45 54 101 74 228 . 38 14 89 15 . 254 122 28 29 173 59 134 48 419 22 . . 115 76 44 166 21 487 122 533 344 Absorbed by Shields 14415 | . . . . . . 249 262 57 . . . 328 132 . . . . . . 91 87 . . . . . . 80 430 1158 346 3370 2100 3670 2055 Redirected to Shielding 135 | . 30 . 7 . . . . . . . . . . . . . . . . . . . . . . . . . . . . . . 98 . Ignored by Resistances 416 | . . . . . . . . . . . . . . . 191 . . . 138 79 . . . . . . . . . 8 . . . . . Regen/Repaired (Parts) 24796 | . . . . . 159 473 430 304 . 229 79 984 359 . 546 2266 202 114 14 1265 801 452 947 1433 187 21 275 1098 811 762 1449 3082 1875 2886 1293 Core Remaining (%) 53 | 100 . 46 . . 54 . . . . 37 . . . . 56 . . . . 58 . . . . . . 35 . 84 . . 35 . . 30 Volleys Fired 3025 | 2 59 20 89 25 38 39 54 72 . 30 13 78 30 25 66 64 29 31 27 38 32 9 74 70 8 9 53 17 67 114 55 331 405 776 176 Largest 3 | 2 2 2 2 2 2 1 1 2 . 2 1 3 1 1 1 2 1 1 1 1 1 1 1 1 1 1 1 1 1 1 2 2 1 1 1 Hottest 315 | 40 40 40 90 50 90 60 93 93 . 106 90 127 73 62 62 72 41 41 74 234 234 95 315 88 88 227 227 227 225 148 268 180 65 116 83 Shots Fired 3367 | 4 118 40 176 50 64 39 54 78 . 48 13 180 30 25 66 65 29 31 27 38 32 9 73 73 9 9 51 17 67 116 56 331 401 772 176 Gun 702 | 4 118 40 172 50 53 . . 12 . 36 . 128 . . . 1 . . . . . . . 73 9 . . . 1 . . 2 3 . . Cannon 2528 | . . . . . 11 38 50 65 . 1 13 52 30 25 66 64 29 31 27 38 32 9 73 . . 9 28 15 50 112 56 309 389 730 176 Launcher 137 | . . . 4 . . 1 4 1 . 11 . . . . . . . . . . . . . . . . 23 2 16 4 . 20 9 42 . Special . | . . . . . . . . . . . . . . . . . . . . . . . . . . . . . . . . . . . . Kinetic 2243 | 4 118 40 100 50 53 27 3 38 . 18 . 17 . 25 35 50 . 7 27 26 22 9 41 . . 9 . . 45 46 1 184 389 730 129 Thermal 713 | . . . . . 1 11 30 13 . 19 13 163 30 . 31 15 . . . . . . . 73 9 . 28 3 1 52 55 119 . . 47 Explosive 111 | . . . 4 . . 1 4 1 . 11 . . . . . . . . . . . . . . . . . 1 16 4 . 20 9 40 . Electromagnetic 300 | . . . 72 . 10 . 17 26 . . . . . . . . 29 24 . 12 10 . 32 . . . 23 13 5 14 . 8 3 2 . Robot Hit Streak 94 | 1 9 4 13 10 10 11 8 11 . 8 4 18 11 8 8 12 7 3 8 10 13 16 9 11 3 6 6 20 22 7 10 38 91 94 57 Robot Miss Streak 7 | 1 3 6 6 1 4 3 4 4 . 2 1 3 5 3 7 4 6 2 2 2 1 2 1 3 2 1 3 . 5 6 2 4 4 2 2 Penetration Max 2 | . . . . . . . . . . . . 1 . . . 1 . . . . . . . . . . . . 1 . . 2 2 2 1 Secondary Targets 11 | . 1 . 5 3 1 . . 1 . . . . . . . . . . . . . . . . . . . . . . . . . . . Max Gunslinging Chain 1 | . 1 . 1 1 1 . . 1 . . . . . . . . . . . . . . . . . . . . . . . . . . . Shots Hit Robots 2223 | 2 78 19 129 40 50 24 39 61 . 32 4 124 29 25 62 44 13 10 14 28 22 5 49 48 3 8 10 14 27 46 16 235 297 481 135 Core Hits 1768 | 2 32 11 64 18 31 16 18 34 . 29 1 41 31 30 53 20 11 7 1 10 11 . 31 18 2 4 15 11 49 34 10 183 278 592 70 Critical Kills 45 | . . . . . . . . . . 1 . 4 . . . . . 1 . . . . . . . . . . 1 3 . 4 15 16 . Critical Parts Destroyed 73 | . 1 . 1 . . . . . . . . 9 . . . . . . 6 1 . . . . . . . . . 3 1 3 19 29 . Critical Strikes 152 | . 1 . 1 . 1 . 3 . . 1 . 14 . . . . . 1 6 2 . . 2 5 . . . 1 3 6 1 13 36 50 5 Burn 8 | . . . . . . . 3 . . . . . . . . . . . . . . . . 5 . . . . . . . . . . . Meltdown 3 | . . . . . . . . . . . . 2 . . . . . . . . . . . . . . . . . . . 1 . . . Destroy 129 | . 1 . 1 . 1 . . . . 1 . 11 . . . . . 1 6 1 . . . . . . . . 1 6 1 12 36 50 . Blast 10 | . . . . . . . . . . . . 1 . . . . . . . . . . 2 . . . . . 2 . . . . . 5 Corrupt 2 | . . . . . . . . . . . . . . . . . . . . 1 . . . . . . . 1 . . . . . . . Melee Attacks 9 | . . . . 2 . . 1 1 . . . . . . . . . . . . . . . 5 . . . . . . . . . . . Impact 4 | . . . . 2 . . . 1 . . . . . . . . . . . . . . . 1 . . . . . . . . . . . Slashing 5 | . . . . . . . 1 . . . . . . . . . . . . . . . . 4 . . . . . . . . . . . Piercing . | . . . . . . . . . . . . . . . . . . . . . . . . . . . . . . . . . . . . Sneak Attacks 1 | . . . . . . . . . . . . . . . . . . . . . . . . 1 . . . . . . . . . . . Combat Hostiles . | . . . . . . . . . . . . . . . . . . . . . . . . . . . . . . . . . . . . Follow-up Attacks . | . . . . . . . . . . . . . . . . . . . . . . . . . . . . . . . . . . . . Damage Inflicted 566432 | 16 634 147 2390 635 1081 1087 1992 2045 . 1578 135 3119 2166 1346 3431 2839 1133 649 1516 2295 1272 342 5103 1495 85 571 1029 1084 6013 4890 1692 62807 157161 253307 39347 Guns 8441 | 16 626 147 2082 629 676 . . 221 . 495 . 2035 . . . 31 . . . . . . . 1364 85 . . . . . . 1 33 . . Cannons 489985 | . . . . . 390 949 1746 1653 . . 135 1084 2166 1346 3401 2805 1009 649 1516 2295 1135 342 3066 . . 571 62 448 1515 3893 1692 52256 153077 211437 39347 Explosions 67448 | . . . 278 . . 138 246 171 . 1083 . . . . . . 124 . . . 137 . 1816 . . . 967 627 4471 997 . 10550 3973 41870 . Melee 131 | . . . . . . . . . . . . . . . . . . . . . . . . 131 . . . . . . . . . . . Ramming 427 | . 8 . 30 6 15 . . . . . . . . . 30 3 . . . . . . 221 . . . . 9 27 . . . 78 . . Kinetic 455725 | 16 626 147 1102 629 791 606 70 1037 . 216 . 326 . 1346 2172 2356 . 186 1516 1812 814 342 1867 . . 571 . . 1321 2638 . 41146 153077 211437 27558 Thermal 37501 | . . . . . 40 343 1012 288 . 279 135 2793 2166 . 1229 480 124 . . . 137 . 1805 1364 85 . 200 . 68 767 1692 10705 . . 11789 Explosive 63363 | . . . 278 . . 138 246 44 . 1083 . . . . . . . . . . . . . . . . . 552 4403 997 . 10332 3973 41317 . Electromagnetic 9285 | . . . 980 . 235 . 664 676 . . . . . . . . 1009 463 . 483 321 . 1210 . . . 829 523 194 488 . 624 33 553 . Impact . | . . . . . . . . . . . . . . . . . . . . . . . . . . . . . . . . . . . . Slashing 131 | . . . . . . . . . . . . . . . . . . . . . . . . 131 . . . . . . . . . . . Piercing . | . . . . . . . . . . . . . . . . . . . . . . . . . . . . . . . . . . . . Highest Corruption 26 | . . . 1 1 1 . . . . 2 1 1 1 3 18 4 2 . 10 14 . 15 21 23 23 18 20 10 2 12 6 26 7 11 1 Average Corruption 8 | . . . 1 1 1 . . . . 1 1 1 1 1 3 3 1 . 3 12 . 9 17 22 21 18 19 6 1 4 3 17 6 7 1 Corruption Purged 53 | . . . . . . . . . . . . . . 3 . 2 2 . . . . . . . 5 . . 10 . 10 . . . 21 . Corruption Blocked . | . . . . . . . . . . . . . . . . . . . . . . . . . . . . . . . . . . . . Effects 905 | . . . 6 3 14 . . . . 15 1 23 4 4 3 10 1 . 2 53 . 5 60 59 47 27 82 23 4 14 18 119 81 220 7 Message Errors 212 | . . . 1 1 3 . . . . 3 . 10 2 1 . 3 . . 1 13 . . 14 15 11 3 22 5 1 4 5 23 22 47 2 Matter Fused 249 | . . . 2 . 6 . . . . 7 . 4 1 2 2 3 1 . . 19 . 2 14 15 11 8 23 5 1 4 5 30 16 65 3 Heat Flow Errors 103 | . . . 1 . . . . . . 1 . 3 . . . 1 . . 1 4 . . 6 6 5 2 11 3 1 2 3 19 11 22 1 Energy Discharges 107 | . . . 1 2 3 . . . . 1 1 2 . 1 1 . . . . 7 . 1 6 8 10 3 7 3 . 1 1 13 8 27 . Parts Rejected 13 | . . . . . . . . . . . . . . . . . . . . . . . 4 . . . . . . 1 . 4 . 4 . Parts Fused 12 | . . . . . . . . . . . . . . . . . . . . 1 . 1 1 1 2 . . 1 . . . 2 1 2 . Data Loss (minor) 82 | . . . 1 . 1 . . . . 2 . 2 . . . 1 . . . 5 . . 4 3 6 10 7 4 1 . 2 6 8 19 . Data Loss (major) 40 | . . . . . 1 . . . . . . 1 1 . . 1 . . . 2 . . 1 2 . . 3 2 . . 1 7 3 14 1 Misfires 21 | . . . . . . . . . . . . . . . . . . . . . . . 1 5 1 . . . . 2 . 4 3 5 . Alerts 28 | . . . . . . . . . . 1 . 1 . . . 1 . . . 1 . . 2 2 1 1 4 . . . 1 5 2 6 . Misdirections 11 | . . . . . . . . . . . . . . . . . . . . 1 . 1 5 . . . 3 . . . . 1 . . . Weapon Failures 27 | . . . . . . . . . . . . . . . . . . . . . . . 2 2 . . 2 . . . . 5 7 9 . Overload Shots 6 | . . . . . . . . . . . 5 . . . . . . . . . . . . . . . . . 1 . . . . . . Overflow Damage 129932 | . . . . . 10 23 238 164 . 2 15 69 11 40 . 193 7 12 345 209 96 23 569 61 . 168 . 11 526 850 449 13293 47629 58723 6196 Projectiles 127352 | . . . . . 10 23 238 114 . . 15 69 11 40 . 193 7 12 345 209 68 23 269 . . 168 . . 136 816 449 12980 47544 57417 6196 Explosions 2519 | . . . . . . . . 50 . 2 . . . . . . . . . . 28 . 300 . . . . 11 390 34 . 313 85 1306 . Melee 61 | . . . . . . . . . . . . . . . . . . . . . . . . 61 . . . . . . . . . . . Knockbacks 496 | . . . . . 2 . 1 11 . . . . . 23 23 8 . . 10 10 8 . 13 . . 2 . . 3 9 . 56 125 133 59 Impact . | . . . . . . . . . . . . . . . . . . . . . . . . . . . . . . . . . . . . Kinetic 444 | . . . . . 2 . 1 11 . . . . . 23 18 8 . . 10 9 8 . 9 . . 2 . . 3 8 . 51 107 117 57 Secondary 52 | . . . . . . . . . . . . . . . 5 . . . . 1 . . 4 . . . . . . 1 . 5 18 16 2 Self-Inflicted Damage 2330 | . . . 35 . . . 57 46 . 55 . . . . . . 11 . . . 286 . 504 . . . 29 100 157 . . 519 253 278 . Shots 40 | . . . 1 . . . 2 1 . 2 . . . . . . 1 . . . 4 . 7 . . . 2 2 3 . . 6 5 4 . Rammed 9 | . 3 . . . 1 . . . . . . . . . 2 1 . . . . . . . . . . . 1 1 . . . . . . Targets Rammed 37 | . 3 . 2 1 1 1 . . . . . . . . 2 1 . . . . . . 23 . . . . 1 1 . . . 1 . . Kicked 28 | . . . 2 1 . 1 . . . . . . . . . . . . . . . . 23 . . . . . . . . . 1 . . Crushed . | . . . . . . . . . . . . . . . . . . . . . . . . . . . . . . . . . . . . Highest Temperature 504 | . 36 12 234 13 315 61 160 256 . 254 90 363 120 27 291 200 7 64 356 504 313 224 395 251 224 386 349 209 333 304 420 209 203 203 143 Average Temperature 92 | . 13 6 46 4 128 26 61 63 . 98 34 92 43 4 71 49 4 31 96 125 152 81 127 92 74 144 129 63 120 113 137 41 38 76 19 Received Heat Transfer 5746 | . 231 . 402 141 445 243 173 565 . 114 . 455 . 9 558 120 63 . 64 48 9 . 760 117 27 . 39 27 294 161 12 385 104 138 42 Thermoelectric Energy+ 3695 | . . . . . . . . . . . . . . . . . . . . . . . . . . . . . . . . . 140 3555 . Effects 38 | . . . . . . . . 2 . 2 . . . . 1 . . . . 7 3 . 4 . . . 1 . 1 3 6 . . 8 . Shutdowns 2 | . . . . . . . . . . . . . . . . . . . . 1 . . . . . . . . . . 1 . . . . Energy Bleed 11 | . . . . . . . . . . . . . . . . . . . . . 3 . 4 . . . . . 1 1 1 . . 1 . Interference 19 | . . . . . . . . 2 . 2 . . . . 1 . . . . 4 . . . . . . 1 . . 2 . . . 7 . Short Circuit 1 | . . . . . . . . . . . . . . . . . . . . . . . . . . . . . . . 1 . . . . Damage (minor) 5 | . . . . . . . . . . . . . . . . . . . . 2 . . . . . . . . . . 3 . . . . Siege Activations . | . . . . . . . . . . . . . . . . . . . . . . . . . . . . . . . . . . . . Martial Activations . | . . . . . . . . . . . . . . . . . . . . . . . . . . . . . . . . . . . . Shielding Activations 2 | . . . . . . . . . . . . . . . . . . . . . . . . 2 . . . . . . . . . . . Total Turns 38 | . . . . . . . . . . . . . . . . . . . . . . . . 38 . . . . . . . . . . . Longest Duration 21 | . . . . . . . . . . . . . . . . . . . . . . . . 21 . . . . . . . . . . . Robots Disrupted . | . . . . . . . . . . . . . . . . . . . . . . . . . . . . . . . . . . . . Combat Hostiles . | . . . . . . . . . . . . . . . . . . . . . . . . . . . . . . . . . . . . Robots Corrupted 31 | . . . . . . . 2 2 . . . . . . . . 1 . . 3 3 . 5 . . . 3 4 . . . 3 . 5 . Combat Hostiles 26 | . . . . . . . 2 1 . . . . . . . . 1 . . 3 3 . 4 . . . 3 3 . . . 3 . 3 . Parts Fried 109 | . . . 3 . 3 . 4 3 . . . . . . . . 5 2 . 5 2 . 19 . . . 8 12 1 8 . 15 8 10 1 Impact Corruptions 43 | . . . . . . . . . . . . . . . . . . . . . . . 1 . . . . . . . . 4 21 16 1 Robots Melted 10 | . . . . . . . . . . . . 3 1 . 1 1 . . . . . . 1 2 . . . . . . . 1 . . . Combat Hostiles 9 | . . . . . . . . . . . . 3 1 . 1 1 . . . . . . . 2 . . . . . . . 1 . . . Parts Melted 51 | . . . . . 1 . 4 . . 3 1 12 6 . 6 5 . . . . . . 1 7 . . . . . 2 2 . . . 1 Heat Transferred 23985 | . . . . . . 350 1450 372 . 650 148 4492 3441 . 1934 1125 150 . . . 150 . 1126 2072 111 . 87 . 50 629 629 2994 . . 2025 Parts Sabotaged 5 | . . . . . . . . . . . . . . . . . . . 3 . . . . . . . . . . . . 1 . 1 . Parts Stolen 1 | . . . . . . . . 1 . . . . . . . . . . . . . . . . . . . . . . . . . . . Parts Stripped . | . . . . . . . . . . . . . . . . . . . . . . . . . . . . . . . . . . . . Power Chain Reactions 6 | . . . . . . . . 2 . . . . . . . . 1 . . . . . . . . . 1 . 1 . . 1 . . . Alert | -11 -10 -10 -9 -9 -9 -7 -7 -7 -7 -6 -6 -6 -6 -6 -6 -5 -5 -5 -5 -4 -4 -4 -4 -4 -4 -4 -3 -3 -3 -2 -2 -2 -1 -1 -1 ------- Run | Yrd Mat Min Mat Sto Rec Fac Low Low Dat Pro Fac Ext Cet Arc Hub Fac Upp Upp War Pro Fac Was Fac Upp Upp Zhi Pro Res Qua Res Tes Frg Acc Com Ac0 Maximum Alert Level 5 | . 1 . 2 1 . 1 . . . . . 2 1 1 3 2 . . . . 1 . 3 . . . . . 4 4 2 5 5 5 . Low Security (%) 32 | 100 78 100 68 . 100 89 . . . . 100 33 55 90 15 . . . . . 89 100 51 . . . . 100 20 . . . . . . Level 1 11 | . 21 . 9 99 . 10 . . . . . 42 44 9 3 35 . . . . 10 . . . . . . . 28 . 65 12 . . . Level 2 8 | . . . 22 . . . . . . . . 23 . . 57 64 . . . . . . 43 . . . . . 20 7 34 7 . . . Level 3 3 | . . . . . . . . . . . . . . . 23 . . . . . . . 4 . . . . . 14 63 . 8 . . . Level 4 1 | . . . . . . . . . . . . . . . . . . . . . . . . . . . . . 16 28 . 9 . . . Level 5 18 | . . . . . . . . . . . . . . . . . . . . . . . . . . . . . . . . 58 22 42 . High Security 23 | . . . . . . . . . . . . . . . . . . . . . . . . . . . . . . . . 3 77 57 . Max Security . | . . . . . . . . . . . . . . . . . . . . . . . . . . . . . . . . . . . . Sterilizations 1 | . . . . . . . . . . . . . . . . . . . . . . . . . . . . . . . . . 1 . . Peak Influence 23919 | 5 235 94 555 319 88 224 . . . . 30 550 260 248 847 529 . . . . 281 92 759 . . . . 194 1355 1224 681 4755 11743 23919 . Initial 7515 | . . 64 . 231 86 154 . . . . 26 . 180 67 . 410 . . . . 55 92 4 . . . . 114 99 758 681 234 2852 7515 . Average 4697 | . 90 20 180 243 28 131 . . . . 3 272 191 54 544 406 . . . . 75 55 322 . . . . 33 560 945 379 2298 7939 17032 . Influence Increases 45434 | 5 498 153 1067 338 276 557 320 300 . 205 35 1201 270 296 1155 514 210 175 60 315 474 4 1263 95 . 15 280 308 1678 939 428 5278 9189 16867 666 Destroy 0b10 Robot/C 26300 | . 320 80 600 240 80 220 260 220 . 160 20 700 160 80 540 260 180 140 60 240 140 . 500 80 . . 200 160 520 360 120 3000 6060 10600 . Destroy 0b10 Robot/NC 1160 | 5 5 . 50 . 45 5 15 15 . . . 45 10 45 15 5 . . . 5 10 . 45 5 . 15 . 10 20 50 35 95 290 320 . Destroy Leader 3306 | . 72 10 166 60 . 80 30 20 . 30 10 104 . . 134 62 30 20 . 40 30 . 102 10 . . 20 32 64 90 22 310 1012 746 . Allied During Kill 923 | . . 3 . . 39 . . . . . . 278 97 125 335 . . . . . . . . . . . . . . . . 46 . . . Successful Hack 511 | . 41 . 29 18 21 21 . . . . . 37 . . . 101 . . . . 15 . 72 . . . . 30 88 12 26 . . . . Select Force Hacks 230 | . 60 . 30 . 90 . . . . . . . . . 50 . . . . . . . . . . . . . . . . . . . . Disable Machine 1905 | . . 15 30 15 . 30 . . . . . . . 45 45 15 . . . . 135 . 285 . . . . 30 255 60 135 375 105 225 105 Anti-Garrison Action 500 | . . . . . . . . . . . . . . . . . . . . . . . . . . . . . . . . 150 300 50 . Destroy Structure 7074 | . . . 42 5 1 21 . . . . 5 22 3 1 21 56 . . . . 144 4 154 . . . . 16 416 277 75 1257 1177 2816 561 Advance Influence 150 | . . . . . . 150 . . . . . . . . . . . . . . . . . . . . . . . . . . . . . Partial Spotted 15 | . . . . . . . . . . . . . . . . . . . . . . . . . . . . . 15 . . . . . . Lose Combat Pursuer 2160 | . . 45 120 . . 30 15 45 . 15 . 15 . . 15 15 . 15 . 30 . . 105 . . . 60 30 300 90 15 45 45 1110 . Active Sensor Use 1200 | . . . . . . . . . . . . . . . . . . . . . . . . . . . . . . . . . 200 1000 . Influence Decreases 44938 | 5 333 318 518 664 487 492 397 300 . 162 78 878 425 464 316 1103 460 175 22 265 299 261 534 781 49 15 109 303 505 1077 1222 940 2201 4578 24202 Entered New Map 33505 | . . 101 . 318 137 8 30 . . . 17 . 143 101 . 429 93 . . 38 33 171 2 273 10 . . 57 77 591 530 183 1903 4228 24032 Time Decay 9763 | 5 333 197 468 326 350 464 347 290 . 152 61 568 262 363 236 374 367 175 22 227 246 70 442 498 39 15 99 246 398 486 392 697 278 270 . Lost Part 490 | . . . 50 20 . 10 . 10 . 10 . . . . 20 . . . . . 20 20 90 10 . . 10 . 30 . . 20 20 80 70 Lost Ally 430 | . . 20 . . . 10 20 . . . . 160 20 . 60 . . . . . . . . . . . . . . . . 40 . . 100 Purge Threat 750 | . . . . . . . . . . . . 150 . . . 300 . . . . . . . . . . . . . . 300 . . . . Squads Dispatched 2496 | . 3 . 3 1 . 4 . . . . 1 4 . . 9 4 . . . . 2 . 6 . . . . 3 9 8 3 23 60 2353 . Investigation 2328 | . 3 . 2 . . . . . . . . 1 . . 2 1 . . . . 1 . . . . . . . 2 . . . 2 2314 . Extermination 27 | . . . . . . 3 . . . . 1 . . . 2 2 . . . . 1 . 2 . . . . . 2 4 2 6 1 1 . Reinforcement 34 | . . . 1 1 . 1 . . . . . 3 . . 5 1 . . . . . . 2 . . . . 3 4 1 1 3 6 2 . Assault 105 | . . . . . . . . . . . . . . . . . . . . . . . 1 . . . . . 1 3 . 14 50 36 . Garrison 2 | . . . . . . . . . . . . . . . . . . . . . . . 1 . . . . . . . . . 1 . . Intercept . | . . . . . . . . . . . . . . . . . . . . . . . . . . . . . . . . . . . . Searches Triggered . | . . . . . . . . . . . . . . . . . . . . . . . . . . . . . . . . . . . . Unchained Authorized 1 | . . . . . . . . . . . . . . . . . . . . . . . . . . . . . . . . . 1 . . Data Miner Redirects 3 | . . . . . . . . . . . . . . . . 1 . . . . . . 1 . . . . . . 1 . . . . . Construction Impeded 4 | . . . . . . . . . . . . 2 . . 1 . . . . . . . . . . . . . . . . . 1 . . Haulers Reinforced 5 | . . . . . . . . . . . . . . . . . . . . . . . 1 . . . . 2 1 . . . 1 . . Active Scanning Responses 12 | . . . . . . . . . . . . . . . . . . . . . . . . . . . . . . . . . 2 10 . Cargo Convoy Interrupts . | . . . . . . . . . . . . . . . . . . . . . . . . . . . . . . . . . . . . Stealth | -11 -10 -10 -9 -9 -9 -7 -7 -7 -7 -6 -6 -6 -6 -6 -6 -5 -5 -5 -5 -4 -4 -4 -4 -4 -4 -4 -3 -3 -3 -2 -2 -2 -1 -1 -1 --------- Run | Yrd Mat Min Mat Sto Rec Fac Low Low Dat Pro Fac Ext Cet Arc Hub Fac Upp Upp War Pro Fac Was Fac Upp Upp Zhi Pro Res Qua Res Tes Frg Acc Com Ac0 Distress Signals 36 | . 1 1 4 1 . . . . . . . 2 2 . 4 . . . 1 . . . 1 . . . . 13 1 . . . 2 3 . Communications Jammed 53 | . . . . . . . . . . . . . . . . . . . . . . . 3 . . . . . 39 8 3 . . . . Distress Signals 53 | . . . . . . . . . . . . . . . . . . . . . . . 3 . . . . . 39 8 3 . . . . Times Spotted 1185 | . 25 10 44 17 6 25 13 15 . 9 1 41 10 19 28 16 9 7 25 14 8 5 51 4 1 . 12 27 56 35 10 161 95 316 70 Peak Tracking Total 39 | . 3 3 6 4 5 8 5 4 . 4 1 8 5 2 10 6 4 5 16 4 3 5 10 2 1 . 4 6 15 5 3 17 10 39 5 Tactical Retreats 58 | . . 2 3 . . 1 1 3 . 1 . 1 . . 1 1 . 1 . 2 . . 5 . . . 2 2 4 4 1 3 3 16 1 Traps | -11 -10 -10 -9 -9 -9 -7 -7 -7 -7 -6 -6 -6 -6 -6 -6 -5 -5 -5 -5 -4 -4 -4 -4 -4 -4 -4 -3 -3 -3 -2 -2 -2 -1 -1 -1 ------- Run | Yrd Mat Min Mat Sto Rec Fac Low Low Dat Pro Fac Ext Cet Arc Hub Fac Upp Upp War Pro Fac Was Fac Upp Upp Zhi Pro Res Qua Res Tes Frg Acc Com Ac0 Traps Triggered 46 | . 1 . 3 1 . 1 . . . . . 1 . . 1 4 . . . . 2 . 3 1 . . 3 3 1 . 1 14 . 6 . Indirectly 3 | . . . . . . . . . . . . . . . . . . . . . . . . . . . 3 . . . . . . . . Trap Hack Attempts . | . . . . . . . . . . . . . . . . . . . . . . . . . . . . . . . . . . . . Triggered . | . . . . . . . . . . . . . . . . . . . . . . . . . . . . . . . . . . . . Disarmed . | . . . . . . . . . . . . . . . . . . . . . . . . . . . . . . . . . . . . Reprogrammed . | . . . . . . . . . . . . . . . . . . . . . . . . . . . . . . . . . . . . Reused . | . . . . . . . . . . . . . . . . . . . . . . . . . . . . . . . . . . . . Traps Extracted . | . . . . . . . . . . . . . . . . . . . . . . . . . . . . . . . . . . . . Installed . | . . . . . . . . . . . . . . . . . . . . . . . . . . . . . . . . . . . . Triggered . | . . . . . . . . . . . . . . . . . . . . . . . . . . . . . . . . . . . . Most Traps Carried 2 | . . . . . . . . . . . . . . . . . . . . . . . . 2 . . . . . . . . . . . Objects Rigged 7 | . . . . . . . . . . . . . . . . . . . . . . . 7 . . . . . . . . . . . . Exploded 1 | . . . . . . . . . . . . . . . . . . . . . . . 1 . . . . . . . . . . . . Machines | -11 -10 -10 -9 -9 -9 -7 -7 -7 -7 -6 -6 -6 -6 -6 -6 -5 -5 -5 -5 -4 -4 -4 -4 -4 -4 -4 -3 -3 -3 -2 -2 -2 -1 -1 -1 ---------- Run | Yrd Mat Min Mat Sto Rec Fac Low Low Dat Pro Fac Ext Cet Arc Hub Fac Upp Upp War Pro Fac Was Fac Upp Upp Zhi Pro Res Qua Res Tes Frg Acc Com Ac0 Machines Disabled 160 | . . 1 2 1 1 2 . . . . . 1 . 3 3 1 . . . . 9 . 19 . . 2 . 2 17 4 11 40 12 19 10 Max in Single Turn 14 | . . . 1 1 1 1 . . . . . . . 1 1 1 . . . . 9 . 14 . . 1 . 1 5 1 1 2 1 2 1 Garrison Access 8 | . . . . 1 . . . . . . . . . . . 1 . . . . . . . . . . . 2 . . 1 1 2 . . Phase Generator 1 | . . . . . . . . . . . . . . . . . . . . . . . . . . . . . . . . . . 1 . Network Hub 1 | . . . . . . . . . . . . . . . 1 . . . . . . . . . . . . . . . . . . . . Energy Cycler 1 | . . . . . . . . . . . . . . . . . . . . . . . . . . . . . . . . . 1 . . Machines Repaired . | . . . . . . . . . . . . . . . . . . . . . . . . . . . . . . . . . . . . Machines Dismantled 1 | . . . . 1 . . . . . . . . . . . . . . . . . . . . . . . . . . . . . . . Machines Sabotaged 1 | . . . . . . . . . . . . . . . 1 . . . . . . . . . . . . . . . . . . . . Overloaded Fab Kills . | . . . . . . . . . . . . . . . . . . . . . . . . . . . . . . . . . . . . Hacking | -11 -10 -10 -9 -9 -9 -7 -7 -7 -7 -6 -6 -6 -6 -6 -6 -5 -5 -5 -5 -4 -4 -4 -4 -4 -4 -4 -3 -3 -3 -2 -2 -2 -1 -1 -1 --------- Run | Yrd Mat Min Mat Sto Rec Fac Low Low Dat Pro Fac Ext Cet Arc Hub Fac Upp Upp War Pro Fac Was Fac Upp Upp Zhi Pro Res Qua Res Tes Frg Acc Com Ac0 Machines Accessed 127 | . 10 1 11 8 11 5 . . 4 . 3 9 1 . 3 11 1 . . . 3 . 7 1 . 5 . 2 8 7 10 5 . . 1 Terminals 78 | . 8 1 7 7 6 4 . . . . 3 8 1 . 3 6 . . . . 1 . 5 . . . . . 5 3 6 4 . . . Fabricators 6 | . . . . . . . . . . . . . . . . 2 . . . . 1 . 1 . . . . . . 1 1 . . . . Repair Stations . | . . . . . . . . . . . . . . . . . . . . . . . . . . . . . . . . . . . . Recycling Units 12 | . 2 . 2 . 4 1 . . . . . 1 . . . 1 . . . . . . . . . . . . . 1 . . . . . Scanalyzers 10 | . . . 2 . . . . . . . . . . . . 1 . . . . . . . . . . . 1 2 2 2 . . . . Garrison Access 8 | . . . . 1 . . . . . . . . . . . 1 . . . . 1 . 1 . . . . 1 1 . 1 1 . . . Total Hacks 405 | . 32 6 39 18 32 13 . . 31 . 4 22 3 . 6 31 1 . . . 13 . 29 1 . 18 . 5 22 19 35 8 . . 17 Successful 200 | . 17 3 22 10 21 4 . . 31 . . 7 . . 2 15 1 . . . 5 . 5 1 . 18 . 3 7 3 7 1 . . 17 Failed 204 | . 15 3 16 8 11 9 . . . . 4 15 3 . 4 16 . . . . 8 . 24 . . . . 2 15 16 28 7 . . . Catastrophic 50 | . . . 1 . 2 2 . . . . 1 3 . . 1 8 . . . . 4 . 6 . . . . . 4 4 11 3 . . . Database Lockouts 1 | . . . 1 . . . . . . . . . . . . . . . . . . . . . . . . . . . . . . . . Manual 193 | . 29 5 30 14 22 6 . . . . 4 16 1 . 6 7 . . . . 6 . 12 . . . . . 8 1 22 4 . . . Terminals 245 | . 30 6 31 17 17 11 . . . . 4 21 3 . 6 21 . . . . 5 . 23 . . . . . 14 5 24 7 . . . Fabricators 17 | . . . . . . . . . . . . . . . . 4 . . . . 4 . 3 . . . . . . 2 4 . . . . Repair Stations . | . . . . . . . . . . . . . . . . . . . . . . . . . . . . . . . . . . . . Recycling Units 26 | . 2 . 2 . 13 2 . . . . . 1 . . . 1 . . . . . . . . . . . . . 5 . . . . . Scanalyzers 32 | . . . 6 . . . . . . . . . . . . 4 . . . . . . . . . . . 3 7 7 5 . . . . Garrison Access 15 | . . . . 1 . . . . . . . . . . . 1 . . . . 4 . 3 . . . . 2 1 . 2 1 . . . Terminal Hacks 113 | . 6 3 4 3 7 2 . . 31 . . 3 . . . 7 1 . . . 1 . 2 1 . 18 . . 3 . 3 1 . . 17 Record 34 | . . . . . . . . . 11 . . . . . . . . . . . . . . . . 6 . . . . . . . . 17 Part Schematic 19 | . 1 . . . 2 . . . 11 . . 1 . . . . . . . . . . . . . 4 . . . . . . . . . Robot Schematic 7 | . . . . 1 . . . . 6 . . . . . . . . . . . . . . . . . . . . . . . . . . Robot Analysis 15 | . 4 2 2 . 1 1 . . . . . 1 . . . . . . . . . . . . . 4 . . . . . . . . . Prototype ID Bank 10 | . . . 1 . 1 . . . 3 . . . . . . . . . . . . . . . . 4 . . 1 . . . . . . Open Door 3 | . . . . 1 . . . . . . . . . . . . 1 . . . . . . 1 . . . . . . . . . . . Branch Access Points 3 | . . . . . . 1 . . . . . . . . . 1 . . . . . . 1 . . . . . . . . . . . . Terminal Index 1 | . . . . . . . . . . . . . . . . . . . . . . . 1 . . . . . . . . . . . . Alert Level 3 | . . . . . . . . . . . . . . . . 2 . . . . . . . . . . . . . . 1 . . . . Unreport Threat 5 | . . . . . . . . . . . . 1 . . . 2 . . . . . . . . . . . . . . 2 . . . . Locate Traps 1 | . . . . . . . . . . . . . . . . 1 . . . . . . . . . . . . . . . . . . . Recall Investigation 1 | . . . . . . . . . . . . . . . . . . . . . 1 . . . . . . . . . . . . . . Zone Layout 8 | . 1 1 1 1 1 . . . . . . . . . . 1 . . . . . . . . . . . . 2 . . . . . . Proto ID Catalog 1 | . . . . . . . . . . . . . . . . . . . . . . . . . . . . . . . . 1 . . . Release Object 2 | . . . . . 2 . . . . . . . . . . . . . . . . . . . . . . . . . . . . . . Fabricator Hacks 6 | . . . . . . . . . . . . . . . . 3 . . . . 2 . 1 . . . . . . . . . . . . Load Schematic 2 | . . . . . . . . . . . . . . . . 1 . . . . 1 . . . . . . . . . . . . . . Build 4 | . . . . . . . . . . . . . . . . 2 . . . . 1 . 1 . . . . . . . . . . . . Repair Station Hacks . | . . . . . . . . . . . . . . . . . . . . . . . . . . . . . . . . . . . . Recycling Unit Hacks 7 | . . . 1 . 3 1 . . . . . 1 . . . . . . . . . . . . . . . . . 1 . . . . . Retrieve Matter 1 | . . . . . . . . . . . . . . . . . . . . . . . . . . . . . . 1 . . . . . Retrieve Components 6 | . . . 1 . 3 1 . . . . . 1 . . . . . . . . . . . . . . . . . . . . . . . Scanalyzer 17 | . . . 6 . . . . . . . . . . . . 2 . . . . . . . . . . . 2 4 2 1 . . . . Insert Component 4 | . . . 1 . . . . . . . . . . . . . . . . . . . . . . . . . 3 . . . . . . Analyze 1 | . . . 1 . . . . . . . . . . . . . . . . . . . . . . . . . . . . . . . . Retrieve Study 12 | . . . 4 . . . . . . . . . . . . 2 . . . . . . . . . . . 2 1 2 1 . . . . Garrison Access Hacks 4 | . . . . 1 . . . . . . . . . . . 1 . . . . . . . . . . . 1 . . 1 . . . . Seal Access 4 | . . . . 1 . . . . . . . . . . . 1 . . . . . . . . . . . 1 . . 1 . . . . Unauthorized Hacks 53 | . 11 . 11 6 11 1 . . . . . 3 . . 2 2 . . . . 2 . 2 . . . . . . . 2 . . . . Terminals 44 | . 9 . 10 6 6 1 . . . . . 3 . . 2 2 . . . . 1 . 2 . . . . . . . 2 . . . . Track 2 | . . . . . . . . . . . . 1 . . 1 . . . . . . . . . . . . . . . . . . . . Botnet 17 | . 3 . 4 1 1 1 . . . . . 2 . . . 2 . . . . . . 1 . . . . . . . 2 . . . . Detonate 1 | . . . . . . . . . . . . . . . . . . . . . . . 1 . . . . . . . . . . . . Operators 1 | . 1 . . . . . . . . . . . . . . . . . . . . . . . . . . . . . . . . . . Skim 22 | . 5 . 6 5 5 . . . . . . . . . . . . . . . 1 . . . . . . . . . . . . . . Sabotage 1 | . . . . . . . . . . . . . . . 1 . . . . . . . . . . . . . . . . . . . . Fabricators 1 | . . . . . . . . . . . . . . . . . . . . . 1 . . . . . . . . . . . . . . Prioritize 1 | . . . . . . . . . . . . . . . . . . . . . 1 . . . . . . . . . . . . . . Repair Stations . | . . . . . . . . . . . . . . . . . . . . . . . . . . . . . . . . . . . . Recycling Units 8 | . 2 . 1 . 5 . . . . . . . . . . . . . . . . . . . . . . . . . . . . . . Reject 1 | . . . . . 1 . . . . . . . . . . . . . . . . . . . . . . . . . . . . . . Mask 1 | . . . . . 1 . . . . . . . . . . . . . . . . . . . . . . . . . . . . . . Tunnel 6 | . 2 . 1 . 3 . . . . . . . . . . . . . . . . . . . . . . . . . . . . . . Scanalyzers . | . . . . . . . . . . . . . . . . . . . . . . . . . . . . . . . . . . . . Garrison Access . | . . . . . . . . . . . . . . . . . . . . . . . . . . . . . . . . . . . . Data Cores Recovered 2 | . . . 1 . . . . . . . . . . . . . . . . . . . . . . . . . . . . 1 . . . Used . | . . . . . . . . . . . . . . . . . . . . . . . . . . . . . . . . . . . . Hacking Detections 96 | . 8 1 8 7 8 4 . . . . 3 9 1 . 2 9 . . . . 3 . 6 . . . . 1 6 7 9 4 . . . Full Trace Events 6 | . . . 2 . . . . . . . . 1 . . . 1 . . . . 1 . . . . . . . 1 . . . . . . Feedback Events 1 | . . . 1 . . . . . . . . . . . . . . . . . . . . . . . . . . . . . . . . Corruption 1 | . . . 1 . . . . . . . . . . . . . . . . . . . . . . . . . . . . . . . . Feedback Blocked 1 | . . . . . . . . . . . . 1 . . . . . . . . . . . . . . . . . . . . . . . Robot Schematics Acquired 8 | . . . . 1 . . . . 6 . . . . . . . . . . . . . . . . . . . . . . 1 . . . Robots Built . | . . . . . . . . . . . . . . . . . . . . . . . . . . . . . . . . . . . . Authchips . | . . . . . . . . . . . . . . . . . . . . . . . . . . . . . . . . . . . . Time . | . . . . . . . . . . . . . . . . . . . . . . . . . . . . . . . . . . . . Total Robot Build Rating . | . . . . . . . . . . . . . . . . . . . . . . . . . . . . . . . . . . . . Part Schematics Acquired 29 | . 1 . 1 . 2 . . . 11 . . 1 . . . . . . . . . . . . . 4 . . 2 . . 7 . . . Parts Built 8 | . . . . . . . . . . . . . . . . 4 . . . . 2 . 2 . . . . . . . . . . . . Authchips . | . . . . . . . . . . . . . . . . . . . . . . . . . . . . . . . . . . . . Time 189 | . . . . . . . . . . . . . . . . 84 . . . . 47 . 58 . . . . . . . . . . . . Total Part Build Rating 46 | . . . . . . . . . . . . . . . . 22 . . . . 10 . 14 . . . . . . . . . . . . Part Studies Acquired 9 | . . . 1 . . . . . . . . . . . . 2 . . . . . . . . . . . 2 1 2 1 . . . . Parts Repaired . | . . . . . . . . . . . . . . . . . . . . . . . . . . . . . . . . . . . . Time . | . . . . . . . . . . . . . . . . . . . . . . . . . . . . . . . . . . . . Parts Recycled . | . . . . . . . . . . . . . . . . . . . . . . . . . . . . . . . . . . . . Recycled Matter . | . . . . . . . . . . . . . . . . . . . . . . . . . . . . . . . . . . . . Retrieved Matter . | . . . . . . . . . . . . . . . . . . . . . . . . . . . . . . . . . . . . Retrieved Components 35 | . . . 9 . 14 2 . . . . . 10 . . . . . . . . . . . . . . . . . . . . . . . Parts Scanalyzed 1 | . . . 1 . . . . . . . . . . . . . . . . . . . . . . . . . . . . . . . . Part Schematics Acquired 1 | . . . 1 . . . . . . . . . . . . . . . . . . . . . . . . . . . . . . . . Parts Damaged . | . . . . . . . . . . . . . . . . . . . . . . . . . . . . . . . . . . . . Bothacking | -11 -10 -10 -9 -9 -9 -7 -7 -7 -7 -6 -6 -6 -6 -6 -6 -5 -5 -5 -5 -4 -4 -4 -4 -4 -4 -4 -3 -3 -3 -2 -2 -2 -1 -1 -1 ------------ Run | Yrd Mat Min Mat Sto Rec Fac Low Low Dat Pro Fac Ext Cet Arc Hub Fac Upp Upp War Pro Fac Was Fac Upp Upp Zhi Pro Res Qua Res Tes Frg Acc Com Ac0 Used RIF Installer . | . . . . . . . . . . . . . . . . . . . . . . . . . . . . . . . . . . . . Robots Hacked . | . . . . . . . . . . . . . . . . . . . . . . . . . . . . . . . . . . . . Non-combat . | . . . . . . . . . . . . . . . . . . . . . . . . . . . . . . . . . . . . Combat . | . . . . . . . . . . . . . . . . . . . . . . . . . . . . . . . . . . . . Robot Hacks Applied . | . . . . . . . . . . . . . . . . . . . . . . . . . . . . . . . . . . . . Relay Couplers Released 5 | . . . . . . . . . . . . . . . . . . . . . . . . . . . . 3 . . . 1 1 . . Machine Destruction 5 | . . . . . . . . . . . . . . . . . . . . . . . . . . . . 3 . . . 1 1 . . Fabnet Peak Effective % . | . . . . . . . . . . . . . . . . . . . . . . . . . . . . . . . . . . . . Robots Rewired 9 | . . . . . 1 . 1 . . . . 7 . . . . . . . . . . . . . . . . . . . . . . . Allies Hacked 1 | . . . . . . 1 . . . . . . . . . . . . . . . . . . . . . . . . . . . . . Hacks Repelled . | . . . . . . . . . . . . . . . . . . . . . . . . . . . . . . . . . . . . Allies | -11 -10 -10 -9 -9 -9 -7 -7 -7 -7 -6 -6 -6 -6 -6 -6 -5 -5 -5 -5 -4 -4 -4 -4 -4 -4 -4 -3 -3 -3 -2 -2 -2 -1 -1 -1 -------- Run | Yrd Mat Min Mat Sto Rec Fac Low Low Dat Pro Fac Ext Cet Arc Hub Fac Upp Upp War Pro Fac Was Fac Upp Upp Zhi Pro Res Qua Res Tes Frg Acc Com Ac0 Total Allies 31 | . . 1 . 10 1 . 1 . . . . 13 5 . . . . . . . . . . . . . . . . . . . . . . Largest Group 11 | . . 1 . 10 11 1 1 . . . . 10 6 5 5 . . . . . . . . . . . . . . . . . . . . Highest-Rated Group 623 | . . 31 . 88 115 27 32 . . . . 342 623 480 480 . . . . . . . . . . . . . . . . . . . . Highest-Rated Ally 159 | . . 31 . 16 27 27 32 . . . . 159 159 96 96 . . . . . . . . . . . . . . . . . . . . Total Orders 45 | . . . . . 5 . . . . . . 4 . . 3 . . . . . . . . . . . . . . . . 1 . . 32 STAY 8 | . . . . . 3 . . . . . . 2 . . 3 . . . . . . . . . . . . . . . . . . . . FOLLOW 4 | . . . . . 2 . . . . . . 2 . . . . . . . . . . . . . . . . . . . . . . . EXPLORE 22 | . . . . . . . . . . . . . . . . . . . . . . . . . . . . . . . . . . . 22 RETURN 11 | . . . . . . . . . . . . . . . . . . . . . . . . . . . . . . . . 1 . . 10 Ally Attacks 474 | . . 19 . 8 5 . 4 . . . . 196 37 11 43 . . . . . . . . . . . . . . . . 29 . . 122 Total Damage 14564 | . . 236 . 22 33 . 42 . . . . 2816 1001 398 1558 . . . . . . . . . . . . . . . . 1942 . . 6516 Kills 57 | . . 4 . . 1 . . . . . . 25 5 2 13 . . . . . . . . . . . . . . . . 2 . . 5 Allies Corrupted 3 | . . . . . . . . . . . . . . . 1 . . . . . . . . . . . . . . . . . . . 2 Allies Melted 1 | . . . . . . . . . . . . . . . . . . . 1 . . . . . . . . . . . . . . . . Intel | -11 -10 -10 -9 -9 -9 -7 -7 -7 -7 -6 -6 -6 -6 -6 -6 -5 -5 -5 -5 -4 -4 -4 -4 -4 -4 -4 -3 -3 -3 -2 -2 -2 -1 -1 -1 ------- Run | Yrd Mat Min Mat Sto Rec Fac Low Low Dat Pro Fac Ext Cet Arc Hub Fac Upp Upp War Pro Fac Was Fac Upp Upp Zhi Pro Res Qua Res Tes Frg Acc Com Ac0 Active Infowar (turns) 32300 | . . 251 202 . . 534 2118 2113 . 1476 319 1 . . . 662 1535 1214 1156 . 515 147 603 1264 1039 717 1801 1814 943 1260 776 1495 2801 5269 275 Optics 633 | . . . . . . . . . . . . . . . . . . . . . . . . . . . . . . . . . 1 632 . Sensors 9244 | . . . . . . . 83 . . 212 . . . . . . . . . . . . . 1242 853 258 1698 1709 691 1183 721 594 . . . A.S.S. 8377 | . . . . . . . . . . . . . . . . . 1535 1214 1156 . . . . . . . . . . . . . 253 4219 . Zeronet 2332 | . . . . . . . . . . . . . . . . . . . . . . . . . . . . . . . . . 2318 14 . Terrain 2195 | . . . . . . . . . . . . . . . . . . . . . . . . . . . . . . 1058 617 245 . . 275 Structural 6112 | . . . . . . 424 2035 2070 . 1264 319 . . . . . . . . . . . . . . . . . . . . . . . . Seismic 814 | . . 251 202 . . . . 43 . . 318 . . . . . . . . . . . . . . . . . . . . . . . . Decoding 1248 | . . . . . . . . . . . . . . . . . . . . . 515 147 586 . . . . . . . . . . . . T.N.C. 2 | . . . . . . . . . . . . . . . . . . . . . . . . . . . . . . . . . . 2 . Machine Analysis 772 | . . . . . . 110 . . . . . . . . . 662 . . . . . . . . . . . . . . . . . . . Triangulation 81 | . . . . . . . . . . . . . . . . . . . . . . . . . . . . . . . . . . 81 . Cloaking 10097 | . . . . . . . . . . . . . . . . . . . . . 246 . . 209 1039 717 1750 1644 774 . . 756 2564 398 . Jamming 2553 | . . . . . . . . . . . . . . . . . . . . . 7 . 36 22 . . 103 134 827 938 349 137 . . . ECM 5 | . . . . . . . . . . . . 1 . . . . . . . . . . . . . . . . . . . . . 4 . Robot Analysis Total 15 | . 4 2 2 . 1 1 . . . . . 1 . . . . . . . . . . . . . 4 . . . . . . . . . Derelict Logs Recovered 16 | . . 1 . . . . 3 2 . 2 . . . . . . 2 1 . 1 . . . 2 2 . . . . . . . . . . Drone Launches 48 | . . . . . . . . . . . . . . . . . . . . . . . . . . . . . . . . 12 . . 36 Drone Recoveries 38 | . . . . . . . . . . . . . . . . . . . . . . . . . . . . . . . . 10 . . 28 Decoded 0b10 Intel 83 | . . . . . . . . . . . . . . . . . . . . . 38 6 39 . . . . . . . . . . . . Items 83 | . . . . . . . . . . . . . . . . . . . . . 38 6 39 . . . . . . . . . . . . Exploration | -11 -10 -10 -9 -9 -9 -7 -7 -7 -7 -6 -6 -6 -6 -6 -6 -5 -5 -5 -5 -4 -4 -4 -4 -4 -4 -4 -3 -3 -3 -2 -2 -2 -1 -1 -1 ------------- Run | Yrd Mat Min Mat Sto Rec Fac Low Low Dat Pro Fac Ext Cet Arc Hub Fac Upp Upp War Pro Fac Was Fac Upp Upp Zhi Pro Res Qua Res Tes Frg Acc Com Ac0 Turns Passed 60648 | 111 1278 850 1821 720 2104 1167 2474 2824 156 1646 576 2801 572 2035 529 873 1639 1214 1215 1356 529 147 1270 1333 1039 717 1801 1892 943 1262 920 3017 2801 12801 2215 Spaces Moved 36596 | 55 666 472 904 301 1078 768 1190 1387 82 899 313 905 198 375 289 567 1184 903 139 1036 471 120 796 924 794 208 1033 834 854 1179 743 1875 1395 9556 2103 Core 3 | 3 . . . . . . . . . . . . . . . . . . . . . . . . . . . . . . . . . . . Treads 8081 | 52 666 472 . . 580 67 45 . . . . 63 . 198 52 567 1184 903 139 143 . . . . . . . 268 827 . 478 420 422 535 . Legs 16724 | . . . 414 301 374 431 663 458 . . 23 397 177 . . . . . . . . 106 796 510 103 208 527 176 27 19 3 . 973 8569 1469 Wheels 2896 | . . . 490 . 124 48 373 775 82 899 96 9 . . . . . . . . . . . . . . . . . . . . . . . Hover 3056 | . . . . . . 222 109 154 . . . 124 21 177 237 . . . . 893 471 14 . . . . . . . . . . . . 634 Flight 5836 | . . . . . . . . . . . 194 312 . . . . . . . . . . . 414 691 . 506 390 . 1160 262 1455 . 452 . Fastest Speed 50 | 50 160 160 95 190 124 85 119 135 169 95 139 108 225 120 120 120 120 120 120 79 79 79 102 76 76 104 76 76 82 74 74 104 110 89 89 Average Speed 121 | 154 160 160 146 190 151 127 157 178 169 151 168 204 225 175 120 120 120 120 120 93 79 99 122 115 91 179 113 194 83 74 93 109 114 104 89 Slowest Speed 302 | 160 160 160 190 260 260 240 204 204 169 169 240 266 225 225 120 120 120 120 120 120 79 102 145 228 204 204 255 302 135 135 176 125 125 110 89 Overloaded Moves . | . . . . . . . . . . . . . . . . . . . . . . . . . . . . . . . . . . . . Propulsion Burnouts . | . . . . . . . . . . . . . . . . . . . . . . . . . . . . . . . . . . . . Robots Hopped 15 | . . . . . . . . . . . . . . . . . . . . . . . . . . . . . . 14 1 . . . . Potential Cave-ins 39 | . . . . . . . . . . . . . . . . . . . 2 2 . . . . . . 3 . . 4 . 7 . 17 4 Cave-ins Triggered 1 | . . . . . . . . . . . . . . . . . . . . . . . . . . . . . . 1 . . . . . Teleports 7 | . . . . . . . . . . . . . . . . . . . . . . . . . . . . . 1 1 . 2 . 1 2 Exploration Rate (%) 65 | 6 98 95 87 50 99 23 98 98 69 91 9 87 56 87 36 12 98 92 14 97 16 72 24 88 89 62 94 31 88 39 78 41 35 94 93 Regions Visited 35 Branch Regions 24 Pre-discovered Areas 23 | . 2 . 3 3 6 . . 1 1 . . . . . . . . . . 1 . . . 2 1 3 . . . . . . . . . Known Exits Taken 19 | . 1 1 1 . . 1 . . . . 1 . . . . 1 1 1 1 . . . 1 1 1 1 1 1 1 1 1 1 . . . Unknown Exits Taken 14 | 1 . . . 1 1 . 1 1 1 1 . 1 1 1 1 . . . . 1 . . . . . . . . . . . . 1 1 . Scrap Searched 27 | . . 1 . . . . 3 4 . 4 . . . . . . 3 2 . 3 . . . 3 2 . 2 . . . . . . . . Spaces Dug 467 | . . . 12 2 . 4 10 1 . . 5 . . . . 16 3 3 16 2 86 2 6 5 2 . 10 3 32 29 19 14 11 157 17 Terrain Destroyed 3512 | . . . 47 2 . 21 25 37 . 96 5 4 . . 8 31 14 17 20 13 95 2 79 21 4 . 45 8 296 106 24 257 519 1587 129 Melee 5 | . . . . 2 . . 1 . . . . . . . . . . . . . . . . 2 . . . . . . . . . . . Projectile 1884 | . . . . . . 12 7 13 . . 5 4 . . 8 31 8 17 20 13 18 2 15 19 4 . 27 3 54 86 24 188 257 920 129 AOE 1623 | . . . 47 . . 9 17 24 . 96 . . . . . . 6 . . . 77 . 64 . . . 18 5 242 20 . 69 262 667 . Terrain Rammed 1 | . . . . . . . . . . . . . . . . . . . . . . . . . . . . . . . . . 1 . . Walls Destroyed . | . . . . . . . . . . . . . . . . . . . . . . . . . . . . . . . . . . . . Machines Disabled . | . . . . . . . . . . . . . . . . . . . . . . . . . . . . . . . . . . . . Actions | -11 -10 -10 -9 -9 -9 -7 -7 -7 -7 -6 -6 -6 -6 -6 -6 -5 -5 -5 -5 -4 -4 -4 -4 -4 -4 -4 -3 -3 -3 -2 -2 -2 -1 -1 -1 --------- Run | Yrd Mat Min Mat Sto Rec Fac Low Low Dat Pro Fac Ext Cet Arc Hub Fac Upp Upp War Pro Fac Was Fac Upp Upp Zhi Pro Res Qua Res Tes Frg Acc Com Ac0 Total 50265 | 76 786 535 1244 386 1498 927 1726 1661 102 1136 355 1729 302 1734 407 701 1379 1003 1164 1396 603 136 1009 1133 1099 550 1613 1086 1013 1427 918 2605 2445 12017 2364 Wait 8317 | 3 33 23 159 32 286 39 433 144 15 187 . 596 41 1304 27 28 141 67 983 266 24 1 22 89 280 301 499 106 17 25 38 137 567 1400 4 Move 36534 | 54 665 471 903 300 1077 767 1189 1386 81 898 312 904 197 374 288 566 1183 902 138 1035 471 119 795 923 793 207 1032 833 853 1153 740 1874 1394 9555 2102 Hop 11 | . . . . . . . . . . . . . . . . . . . . . . . . . . . . . . 10 1 . . . . Pick Up 703 | 9 12 6 27 7 31 36 9 20 1 6 11 26 15 16 8 18 12 2 4 26 22 1 45 15 4 13 9 44 19 32 16 70 21 73 17 Fast Attach 172 | 6 2 . 11 2 . 3 4 1 . . . 6 2 . 1 4 . . . 2 5 . 7 6 2 2 . 6 6 7 9 23 6 43 6 Attach 181 | 1 . . 11 3 2 3 1 5 . 2 3 9 2 1 2 4 1 . 4 3 7 2 8 3 3 4 3 5 8 9 7 21 8 27 9 Detach 59 | . . . . 1 2 2 1 1 2 . 3 6 . . . 1 . . 1 . 4 . 2 2 1 . 1 1 4 2 9 6 2 5 . Swap 403 | . 4 8 14 4 7 6 20 15 . 6 1 1 . 2 4 . . . . 5 14 4 14 4 1 . 5 26 20 40 18 69 17 39 35 Drop 711 | 1 8 7 28 5 34 31 13 16 3 7 12 36 15 12 9 15 13 1 7 21 24 . 19 16 7 14 11 41 18 34 25 73 23 98 14 Fire 3025 | 2 59 20 89 25 38 39 54 72 . 30 13 78 30 25 66 64 29 31 27 38 32 9 74 70 8 9 53 17 67 114 55 331 405 776 176 Melee 9 | . . . . 2 . . 1 1 . . . . . . . . . . . . . . . 5 . . . . . . . . . . . Ram 2 | . . . . . . . . . . . . . . . . . . . . . . . . . . . . 1 . . . . 1 . . Kick 28 | . . . 2 1 . 1 . . . . . . . . . . . . . . . . 23 . . . . . . . . . 1 . . Crush 8 | . 3 . . . 1 . . . . . . . . . 2 1 . . . . . . . . . . . . 1 . . . . . . Escape Stasis 14 | . . . . . . . . . . . . 7 . . . . . . . . . . . . . . . 6 . 1 . . . . . Rewire 81 | . . . . . 19 . 1 . . . . 60 . . . . . . . . . . . . . . . . . . . . . 1 . Trap . | . . . . . . . . . . . . . . . . . . . . . . . . . . . . . . . . . . . . Miscellaneous 7 | . . . . 4 1 . . . . . . . . . . . . . . . . . . . . . . . . . . 1 . . 1 Route ------- -11/Scrapyard -10/Materials (discovered 6 exits: *Mat x3 / *Min x2 / Sub) -10/Mines (discovered 2 exits: *Mat x2) -9/Materials (discovered 7 exits: *Mat x3 / *Min x2 / *Sto x2) -9/Storage (discovered 2 exits: Mat / *Rec) -9/Recycling -7/Factory (discovered 2 exits: *Low x2) -7/Lower Caves -7/Lower Caves (discovered 2 exits: *Fac / *Dat) -7/Data Miner -6/Proximity Caves -6/Factory (discovered 2 exits: Low / *Ext) -6/Extension (discovered 2 exits: *Fac / *Cet) -6/Cetus (discovered 2 exits: *Fac / [*Arc]) -6/Archives (discovered 3 exits: *Fac / *Hub x2) -6/Hub_04(d) -5/Factory (discovered 3 exits: *Fac / *Upp x2) -5/Upper Caves (discovered 2 exits: *Upp / *War) -5/Upper Caves (discovered 2 exits: *Fac / *War) -5/Warlord -4/Proximity Caves -4/Factory (discovered 2 exits: *Upp x2) -4/Waste -4/Factory (discovered 2 exits: *Upp x2) -4/Upper Caves -4/Upper Caves (discovered 2 exits: *Res / *Zhi) -4/Zhirov -3/Proximity Caves -3/Research -3/Quarantine -2/Research (discovered 3 exits: *Acc x2 / *Tes) -2/Testing (discovered 3 exits: *Acc / [*Sec] / *Frg) -2/Protoforge -1/Access -1/Command (discovered 3 exits: [*Sur x2] / *Ac0) -1/Access_0 0b11 Command History --------- Turn | Location | Event 8 | -11/Scrapyard | Discovered new exit (range 16) 112 | -11/Scrapyard | Entered Materials 271 | -10/Materials | Discovered new exit (range 14) 307 | -10/Materials | Build established: Mutant 544 | -10/Materials | Discovered new exit (range 16) 686 | -10/Materials | Discovered new exit (range 16) 733 | -10/Materials | Identified exit to Materials 776 | -10/Materials | Identified exit to Mines 776 | -10/Materials | Identified exit to Subcaves 835 | -10/Materials | Loaded intel: 11 interactive machine locations 849 | -10/Materials | Loaded intel: 2 recycling unit locations 904 | -10/Materials | Learned location of 1 exit from Storage 1390 | -10/Materials | Entered Mines 1391 | -10/Mines | Assembled infested the area 1396 | -10/Mines | Assisted by a Guerilla fighting off Assembled 1457 | -10/Mines | Learned location of 1 exit from Materials 1527 | -10/Mines | Received a Mining Laser from a helpful Derelict 1902 | -10/Mines | Core integrity fell below 50% 2240 | -10/Mines | Entered Materials 2240 | -9/Materials | Evolved 2 slots: Propulsion x1, Utility x1 2241 | -9/Materials | Identified exit to Materials 2568 | -9/Materials | Discovered exit to Materials (range 13) 2887 | -9/Materials | Discovered new exit (range 11) 2894 | -9/Materials | Discovered new exit (range 16) 2947 | -9/Materials | Lost 4 parts (1p2n1u) 3107 | -9/Materials | Discovered new exit (range 11) 3145 | -9/Materials | Identified exit to Storage 3526 | -9/Materials | Discovered exit to Storage (range 16) 3584 | -9/Materials | Central database locked down 3661 | -9/Materials | Identified exit to Mines 3790 | -9/Materials | Learned location of 1 exit from Recycling 3909 | -9/Materials | Learned location of Storage (-9) 3929 | -9/Materials | Learned 2 Storage zone layouts 4002 | -9/Materials | Loaded intel: 2 recycling unit locations 4061 | -9/Materials | Entered Storage 4282 | -9/Storage | Used back door to open Recycling access 4282 | -9/Storage | Discovered new exit (range 5) 4622 | -9/Storage | Learned Materials security intel 4654 | -9/Storage | Learned location of Zion (-6) 4668 | -9/Storage | Assisted by bots powering up and referring to "LRC-V3" 4686 | -9/Storage | Learned location of Mines (-8) 4688 | -9/Storage | Learned 4 Materials zone layouts 4689 | -9/Storage | Learned 2 Materials zone layouts 4690 | -9/Storage | Loaded intel: 1 garrison access location 4696 | -9/Storage | Loaded intel: 15 terminal locations 4710 | -9/Storage | Learned 2 Materials zone layouts 4781 | -9/Storage | Entered Recycling 4781 | -9/Recycling | Accompanied by 10 allies 4782 | -9/Recycling | Identified exit to Scraptown 5000 | -9/Recycling | Build established: Commander-Mutant 5096 | -9/Recycling | Scanned before Scraplab entrance 5123 | -9/Recycling | Entered Scraplab 5135 | -9/Recycling | Angered Scraplab inhabitants 5137 | -9/Recycling | Found Prototype Device 5174 | -9/Recycling | Identified Scrap Engine 5924 | -9/Recycling | Build established: Commander-Construct 6356 | -9/Recycling | Discovered new exit (range 8) 6423 | -9/Recycling | Learned Storage security intel 6589 | -9/Recycling | Learned location of 2 exits from Materials 6671 | -9/Recycling | Learned Materials stockpile data 6885 | -9/Recycling | Entered Factory 6885 | -7/Factory | Accompanied by 1 ally 6885 | -7/Factory | Evolved 4 slots: Propulsion x2, Utility x1, Weapon x1 7205 | -7/Factory | Build established: Construct 7263 | -7/Factory | Assembled infested ambush trap array 7763 | -7/Factory | Identified exit to Lower Caves 8052 | -7/Factory | Entered Lower Caves 8156 | -7/Lower Caves | Learned Factory emergency access door positions 8747 | -7/Lower Caves | Attracted the attention of an 0b10 outpost 8845 | -7/Lower Caves | Learned Factory stockpile data 8846 | -7/Lower Caves | Learned Factory garrison access intel 8952 | -7/Lower Caves | Discovered new exit (range 8) 9249 | -7/Lower Caves | Attracted the attention of an 0b10 checkpoint 10526 | -7/Lower Caves | Entered another Lower Caves area 10640 | -7/Lower Caves | Discovered new exit (range 9) 11370 | -7/Lower Caves | Core integrity fell below 50% 12307 | -7/Lower Caves | Discovered new exit (range 13) 12449 | -7/Lower Caves | Found DCF Scrap (16 items) 13350 | -7/Lower Caves | Entered Data Miner 13350 | -7/Data Miner | Discovered new exit (range 7) 13383 | -7/Data Miner | Met Data Miner 13415 | -7/Data Miner | Learned location of Section 7 (-2) 13415 | -7/Data Miner | Acquired the access code to Warlord's prototype stash 13440 | -7/Data Miner | Received God Mode back door access code from Data Miner 13506 | -7/Data Miner | Entered Proximity Caves 14060 | -6/Proximity Caves | Spotted B-75 Beast 14233 | -6/Proximity Caves | Learned location of 1 exit from Factory 14363 | -6/Proximity Caves | Received a Behemoth hack from an annoying Tinkerer 14611 | -6/Proximity Caves | Learned 4 Factory zone layouts 14957 | -6/Proximity Caves | Discovered new exit (range 15) 15152 | -6/Proximity Caves | Entered Factory 15152 | -6/Factory | Evolved 2 slots: Propulsion x1, Utility x1 15153 | -6/Factory | Identified exit to Lower Caves 15154 | -6/Factory | Identified exit to Extension 15158 | -6/Factory | Loaded intel: 4 garrison access locations 15728 | -6/Factory | Entered Extension 15935 | -6/Extension | Rescued a captive Derelict 15936 | -6/Extension | Rescued a captive Derelict 16292 | -6/Extension | Rescued a captive Derelict 16293 | -6/Extension | Rescued a captive Derelict 16653 | -6/Extension | Disrupted transfer network 16852 | -6/Extension | Build established: Commander-Construct 17169 | -6/Extension | Spotted B-75 Beast 17181 | -6/Extension | Destroyed B-75 Beast 17182 | -6/Extension | Spotted B-75 Beast 17203 | -6/Extension | Destroyed B-75 Beast 17224 | -6/Extension | Lost 7 allies 17370 | -6/Extension | Rescued a captive Derelict 17478 | -6/Extension | Build established: Construct 17577 | -6/Extension | Rescued A7 18030 | -6/Extension | Discovered new exit (range 10) 18032 | -6/Extension | Discovered new exit (range 6) 18529 | -6/Extension | Entered Cetus 18529 | -6/Cetus | Accompanied by 2 allies (A7) 18534 | -6/Cetus | Acquired a Cetus Manufacturing Module code from A7 18557 | -6/Cetus | Spotted Cetus Guard 18557 | -6/Cetus | Spotted Cetus Guard 18562 | -6/Cetus | Spotted Cetus Guard 18565 | -6/Cetus | Spotted Cetus Guard 18569 | -6/Cetus | Destroyed Cetus Guard 18570 | -6/Cetus | Allies destroyed Cetus Guard 18573 | -6/Cetus | Destroyed Cetus Guard 18577 | -6/Cetus | Destroyed Cetus Guard 18701 | -6/Cetus | Started Cetus Manufacturing Module 18726 | -6/Cetus | Manufactured an Enhanced Grunt 18751 | -6/Cetus | Manufactured an Enhanced Grunt 18776 | -6/Cetus | Manufactured an Enhanced Grunt 18799 | -6/Cetus | Discovered new exit (range 15) 18801 | -6/Cetus | Manufactured an Enhanced Grunt 18826 | -6/Cetus | Manufactured an Enhanced Grunt 18836 | -6/Cetus | Spotted Cetus Guard 18837 | -6/Cetus | Spotted Cetus Guard 18840 | -6/Cetus | Allies destroyed Cetus Guard 18841 | -6/Cetus | Spotted Cetus Guard 18841 | -6/Cetus | Spotted Cetus Guard 18848 | -6/Cetus | Destroyed Cetus Guard 18850 | -6/Cetus | Allies destroyed Cetus Guard 18854 | -6/Cetus | Destroyed Cetus Guard 18870 | -6/Cetus | Discovered new exit (range 16) 18881 | -6/Cetus | Met Revision 17 18944 | -6/Cetus | Murdered A7 18946 | -6/Cetus | Extracted ID and sensor layout for unrecognized location from A7's data core 19101 | -6/Cetus | Entered Archives 19101 | -6/Archives | Accompanied by 5 allies 19106 | -6/Archives | Build established: Commander-Construct 19341 | -6/Archives | Discovered new exit (range 16) 19359 | -6/Archives | Discovered new exit (range 14) 19397 | -6/Archives | Discovered new exit (range 16) 21136 | -6/Archives | Entered Hub_04(d) 21136 | -6/Hub_04(d) | Accompanied by 5 allies 21454 | -6/Hub_04(d) | Found Prototype Device 21523 | -6/Hub_04(d) | Discovered new exit (range 12) 21553 | -6/Hub_04(d) | Network Hub disabled 21564 | -6/Hub_04(d) | Spotted Lightning 21569 | -6/Hub_04(d) | Spotted Lightning 21589 | -6/Hub_04(d) | Spotted Lightning 21612 | -6/Hub_04(d) | System corruption reached 10% 21620 | -6/Hub_04(d) | Destroyed Lightning 21623 | -6/Hub_04(d) | Found Prototype Device 21638 | -6/Hub_04(d) | Identified Exp. EM Shield 21647 | -6/Hub_04(d) | Destroyed Lightning 21665 | -6/Hub_04(d) | Entered Factory 21665 | -5/Factory | Evolved 2 slots: Power x1, Utility x1 21673 | -5/Factory | Discovered new exit (range 16) 21732 | -5/Factory | Build established: Construct 21916 | -5/Factory | Identified exit to Upper Caves 21924 | -5/Factory | Fabricated Hyp. Gauss Cannon? 22153 | -5/Factory | Incoming investigation squad redirected 22162 | -5/Factory | Fabricated Weapon Mount (x2) 22270 | -5/Factory | Discovered new exit (range 13) 22364 | -5/Factory | Spotted B-75 Beast 22538 | -5/Factory | Entered Upper Caves 22605 | -5/Upper Caves | Identified Active Sensor Suite 22648 | -5/Upper Caves | Learned location of 1 exit from Factory 22886 | -5/Upper Caves | Attracted the attention of an 0b10 checkpoint 23055 | -5/Upper Caves | Spotted B-75 Beast 23069 | -5/Upper Caves | Destroyed B-75 Beast 23372 | -5/Upper Caves | Learned Factory terminal intel 23659 | -5/Upper Caves | Discovered new exit (range 9) 23683 | -5/Upper Caves | Identified exit to Upper Caves 23967 | -5/Upper Caves | A Derelict revealed a hidden shortcut to "reach the base" 24177 | -5/Upper Caves | Entered another Upper Caves area 24229 | -5/Upper Caves | Discovered new exit (range 7) 24758 | -5/Upper Caves | Identified exit to Warlord 24970 | -5/Upper Caves | Attracted the attention of an 0b10 checkpoint 25255 | -5/Upper Caves | Spotted B-75 Beast 25391 | -5/Upper Caves | Entered Warlord 25439 | -5/Warlord | Discovered new exit (range 9) 25448 | -5/Warlord | Identified exit to Proximity Caves 25482 | -5/Warlord | Warlord's base attacked by MAIN.C 25832 | -5/Warlord | Warlord forces counterattacked 26157 | -5/Warlord | Warlord base infiltrated, sounded retreat 26482 | -5/Warlord | Lost 15 allies 26486 | -5/Warlord | Met Warlord 26538 | -5/Warlord | Spotted Executioner 26565 | -5/Warlord | Destroyed Executioner 26580 | -5/Warlord | Spotted Striker 26590 | -5/Warlord | Found Prototype Processor 26606 | -5/Warlord | System corruption reached 10% 26606 | -5/Warlord | Entered Proximity Caves 26606 | -4/Proximity Caves | Identified Exp. Targeting Computer 26943 | -4/Proximity Caves | Spotted B-86 Titan 27805 | -4/Proximity Caves | Discovered new exit (range 14) 27962 | -4/Proximity Caves | Entered Factory 27962 | -4/Factory | Evolved 2 slots: Utility x2 27963 | -4/Factory | Identified exit to Upper Caves 27964 | -4/Factory | Loaded intel: 23 terminal locations 28100 | -4/Factory | Fabricated Weapon Mount? 28268 | -4/Factory | Discovered exit to Upper Caves (range 15) 28491 | -4/Factory | Sucked down chute 28491 | -4/Factory | Entered Waste 28500 | -4/Waste | Spotted C-40 Crusher 28506 | -4/Waste | EMP discharged 28509 | -4/Waste | Spotted C-40 Crusher 28517 | -4/Waste | Spotted C-40 Crusher 28579 | -4/Waste | Spotted C-40 Crusher 28581 | -4/Waste | Spotted C-40 Crusher 28586 | -4/Waste | Spotted C-40 Crusher 28588 | -4/Waste | Crushed by Compactor (0 parts destroyed, 1 dropped) 28589 | -4/Waste | Crushed by Compactor (1 part destroyed, 1 dropped) 28589 | -4/Waste | Crushed by Compactor (1 part destroyed) 28606 | -4/Waste | EMP discharged 28606 | -4/Waste | System corruption reached 10% 28606 | -4/Waste | Discovered new exit (range 16) 28638 | -4/Waste | Entered Factory 28823 | -4/Factory | Found Prototype Processor 28825 | -4/Factory | Found Prototype Processor 28985 | -4/Factory | Fabricated Centrium Wheel? 29065 | -4/Factory | Identified Exp. Signal Interpreter (x2) 29388 | -4/Factory | First assault squad dispatched 29686 | -4/Factory | Garrison activated, responded to threat 29688 | -4/Factory | Incoming assault squad redirected 29806 | -4/Factory | Found Quantum Capacitor 29898 | -4/Factory | Core integrity fell below 50% 29908 | -4/Factory | Entered Upper Caves 29942 | -4/Upper Caves | Lost 6 parts (1p3u2w) 30403 | -4/Upper Caves | Learned location of Testing (-2) 31180 | -4/Upper Caves | Discovered new exit (range 15) 31228 | -4/Upper Caves | Identified exit to Upper Caves 31241 | -4/Upper Caves | Entered another Upper Caves area 31309 | -4/Upper Caves | Discovered new exit (range 7) 31320 | -4/Upper Caves | Identified exit to Research 31550 | -4/Upper Caves | Encountered a Warlord checkpoint 31567 | -4/Upper Caves | Attracted the attention of an 0b10 checkpoint 31778 | -4/Upper Caves | Learned Research emergency access door positions 31805 | -4/Upper Caves | Found DCF Scrap (15 items) 32204 | -4/Upper Caves | Discovered new exit (range 13) 32273 | -4/Upper Caves | Identified exit to Zhirov 32280 | -4/Upper Caves | Entered Zhirov 32280 | -4/Zhirov | Discovered new exit (range 4) 32317 | -4/Zhirov | Met Zhirov 32393 | -4/Zhirov | Zhirov requested help retrieving the SGEMP Prototype 32426 | -4/Zhirov | Found Alien Artifact 32426 | -4/Zhirov | Identified Integrated Dissipator 32426 | -4/Zhirov | Installed Integrated Dissipator, increased core heat dissipation (+20) 32458 | -4/Zhirov | Found Alien Artifact 32994 | -4/Zhirov | Identified exit to Proximity Caves 32997 | -4/Zhirov | Entered Proximity Caves 34123 | -3/Proximity Caves | Acquired the password to a Derelict Tinkerer's latest research 34210 | -3/Proximity Caves | Caught by Unaware searching for contraband prototypes 34756 | -3/Proximity Caves | Discovered exit to Research (range 13) 34798 | -3/Proximity Caves | Entered Research 34798 | -3/Research | Evolved 2 slots: Power x1, Weapon x1 34998 | -3/Research | Revision forces began assault on 0b10 35023 | -3/Research | Met up with Revision 17++ 35119 | -3/Research | Build established: Hacker-Construct 35498 | -3/Research | Research terminal network offline 35563 | -3/Research | Found Prototype Launcher 35563 | -3/Research | Identified Com. Tesla Bomb Launcher 35564 | -3/Research | System corruption reached 10% 35856 | -3/Research | Spotted Striker 35859 | -3/Research | Spotted Striker 36004 | -3/Research | Build established: Construct 36033 | -3/Research | Found Prototype Device 36034 | -3/Research | Identified Exp. Thermal Shield 36091 | -3/Research | Found Prototype Launcher 36091 | -3/Research | Identified Hellfire Missile Launcher 36131 | -3/Research | Discovered new exit (range 7) 36141 | -3/Research | Identified exit to Quarantine 36416 | -3/Research | Spotted Executioner 36418 | -3/Research | Spotted Striker 36453 | -3/Research | Destroyed Striker 36458 | -3/Research | Destroyed Executioner 36518 | -3/Research | Spotted Striker 36549 | -3/Research | Destroyed Striker 36690 | -3/Research | Entered Quarantine 36723 | -3/Quarantine | Found Alien Impact Weapon 36838 | -3/Quarantine | Found Alien Artifact 36912 | -3/Quarantine | Found Alien Artifact 36914 | -3/Quarantine | Found Alien Artifact 36919 | -3/Quarantine | Found Alien Artifact 36924 | -3/Quarantine | Found Alien Artifact 36926 | -3/Quarantine | Found Alien Artifact 36932 | -3/Quarantine | Identified Hpw. Transdimensional Reconstructor (x2) 36932 | -3/Quarantine | Warped through subspace 36964 | -3/Quarantine | Build established: Infiltrator-Construct 37011 | -3/Quarantine | Found Alien Artifact 37018 | -3/Quarantine | Found Alien Artifact 37018 | -3/Quarantine | Identified Dimensional Node Initializer (x3) 37018 | -3/Quarantine | Initialized slip node 37190 | -3/Quarantine | First assault squad dispatched 37250 | -3/Quarantine | Cryocooling Duct disabled 37265 | -3/Quarantine | Ambient heat levels rising (+20) 37265 | -3/Quarantine | Non-combat units ordered to evacuate 37494 | -3/Quarantine | Cryocooling Duct disabled 37509 | -3/Quarantine | Ambient heat levels rising (+20) 37509 | -3/Quarantine | Combat units ordered to evacuate 37546 | -3/Quarantine | Identified Transdimensional Reconstructor (x3) 37547 | -3/Quarantine | Identified Phase Armor 37603 | -3/Quarantine | Discovered new exit (range 15) 37609 | -3/Quarantine | Quarantine Guard activated 37609 | -3/Quarantine | Spotted Quarantine Guard 37609 | -3/Quarantine | Spotted Quarantine Guard 37609 | -3/Quarantine | Spotted Quarantine Guard 37609 | -3/Quarantine | Spotted Quarantine Guard 37610 | -3/Quarantine | Spotted Quarantine Guard 37619 | -3/Quarantine | Spotted Quarantine Guard 37630 | -3/Quarantine | Identified exit to Research 37633 | -3/Quarantine | Entered Research 37633 | -2/Research | Evolved 2 slots: Utility x2 37751 | -2/Research | Build established: Construct 38075 | -2/Research | Crushed by falling debris 38133 | -2/Research | First assault squad dispatched 38329 | -2/Research | Found Prototype Launcher 38346 | -2/Research | Identified Adv. Micro-nuke Launcher 38484 | -2/Research | Found Prototype Device 38493 | -2/Research | Found Prototype Hackware 38494 | -2/Research | Identified Exp. Focal Shield 38499 | -2/Research | Identified Exp. System Shield 38543 | -2/Research | System corruption reached 10% 38650 | -2/Research | Incoming assault squad redirected 38673 | -2/Research | Found Unknown Device 38673 | -2/Research | Identified Heavy Servo Lattice 38709 | -2/Research | Discovered new exit (range 8) 38727 | -2/Research | Identified exit to Access 38751 | -2/Research | Discovered exit to Access (range 18) 38837 | -2/Research | Warped through subspace 38867 | -2/Research | Discovered new exit (range 19) 38885 | -2/Research | Identified exit to Testing 38895 | -2/Research | Entered Testing 39020 | -2/Testing | Found Prototype Processor 39029 | -2/Testing | Identified Exp. Terrain Scan Processor 39161 | -2/Testing | Found Prototype Energy Cannon 39161 | -2/Testing | Identified Null Cannon 39330 | -2/Testing | Found Prototype Energy Cannon 39350 | -2/Testing | Identified Disintegrator 39462 | -2/Testing | Discovered exit to Access (range 20) 39482 | -2/Testing | Found Prototype Energy Gun 39623 | -2/Testing | Found Prototype Energy Gun 39636 | -2/Testing | Identified Tachyon Dispersion Ray 39638 | -2/Testing | Identified Hyp. EM Gauss Rifle 39734 | -2/Testing | Spotted Fortress 39803 | -2/Testing | Discovered new exit (range 6) 39803 | -2/Testing | Discovered new exit (range 7) 39809 | -2/Testing | Identified exit to Protoforge 39815 | -2/Testing | Entered Protoforge 39921 | -2/Protoforge | Warped through subspace 39949 | -2/Protoforge | Superfortress began startup sequence 40017 | -2/Protoforge | Discovered exit to Access (range 16) 40044 | -2/Protoforge | Initialized slip node 40219 | -2/Protoforge | Additional patrols dispatched to research labs 40255 | -2/Protoforge | Spotted Immortal 40255 | -2/Protoforge | Spotted Immortal 40262 | -2/Protoforge | Destroyed Immortal 40266 | -2/Protoforge | Destroyed Immortal 40274 | -2/Protoforge | Found Prototype Device 40276 | -2/Protoforge | Found Prototype Device 40280 | -2/Protoforge | Found Prototype Device 40294 | -2/Protoforge | Identified Exp. Active Sensor Suite (x3) 40306 | -2/Protoforge | Spotted Decapitator 40306 | -2/Protoforge | Spotted Decapitator 40306 | -2/Protoforge | Spotted Decapitator 40306 | -2/Protoforge | Spotted Decapitator 40324 | -2/Protoforge | Found Prototype Device 40330 | -2/Protoforge | Found Cep. NT7 Matterbank 40332 | -2/Protoforge | Found Cep. NT7 Matterbank 40336 | -2/Protoforge | Identified Crosscalibrator 40337 | -2/Protoforge | Found Cep. NT7 Matterbank 40426 | -2/Protoforge | Destroyed Decapitator 40426 | -2/Protoforge | Destroyed Decapitator 40426 | -2/Protoforge | Destroyed Decapitator 40466 | -2/Protoforge | Destroyed 13 combat bots 40487 | -2/Protoforge | Spotted V923-u 40531 | -2/Protoforge | Found Cep. Zero-point Core 40534 | -2/Protoforge | Found Cep. Zero-point Core 40544 | -2/Protoforge | Found Faulty Cep. Zero-point Core 40560 | -2/Protoforge | Found Faulty Cep. Zero-point Core 40565 | -2/Protoforge | First assault squad dispatched 40677 | -2/Protoforge | Spotted V810-k 40677 | -2/Protoforge | Spotted V490-b 40678 | -2/Protoforge | Spotted V650-j 40679 | -2/Protoforge | Spotted V812-m 40696 | -2/Protoforge | Destroyed V490-b 40703 | -2/Protoforge | Destroyed V812-m 40718 | -2/Protoforge | Destroyed V650-j 40763 | -2/Protoforge | Found Faulty Cep. Helical Railcannon 40766 | -2/Protoforge | Found Cep. Plasma Driver 40837 | -2/Protoforge | Destroyed 8 combat bots 40843 | -2/Protoforge | Spotted Decapitator 40843 | -2/Protoforge | Spotted Decapitator 40843 | -2/Protoforge | Spotted V885-l 40844 | -2/Protoforge | Spotted Decapitator 40852 | -2/Protoforge | Destroyed Decapitator 40854 | -2/Protoforge | Destroyed Decapitator 40856 | -2/Protoforge | Destroyed Decapitator 40874 | -2/Protoforge | Forge Plexus network access discovered 40894 | -2/Protoforge | Destroyed V885-l 40924 | -2/Protoforge | Found Faulty Cep. Arcsight Missile Launcher 40933 | -2/Protoforge | Found Cep. Arcsight Missile Launcher 40950 | -2/Protoforge | Found Cep. Tiamat Rocket Array 40952 | -2/Protoforge | Found Cep. Smart ZDS 40988 | -2/Protoforge | Core integrity fell below 50% 41048 | -2/Protoforge | Found Cep. XC Strikerail 41060 | -2/Protoforge | Found Corrupted Cep. XC Strikerail 41072 | -2/Protoforge | Found Faulty Cep. XC Strikerail 41074 | -2/Protoforge | Found Cep. Lightning Penetrator 41198 | -2/Protoforge | Spotted V033-d 41206 | -2/Protoforge | Found Exp. EM Disruption Field 41209 | -2/Protoforge | Found Faulty Cep. Energy Mantle 41216 | -2/Protoforge | Found Cep. Reaction Jets 41219 | -2/Protoforge | Found Exp. Force Field 41221 | -2/Protoforge | Found Cep. Reaction Jets 41231 | -2/Protoforge | Spotted V785-l 41241 | -2/Protoforge | Destroyed V785-l 41251 | -2/Protoforge | Destroyed V033-d 41259 | -2/Protoforge | Spotted V069-s 41262 | -2/Protoforge | Spotted V175-q 41263 | -2/Protoforge | Destroyed V175-q 41275 | -2/Protoforge | Found Prototype Device 41275 | -2/Protoforge | Identified Exp. Shock Absorption System 41284 | -2/Protoforge | Destroyed 8 combat bots 41285 | -2/Protoforge | Found Prototype Device 41285 | -2/Protoforge | Identified Exp. Weapon Cycler 41290 | -2/Protoforge | Found Faulty Cep. Energy Mantle 41296 | -2/Protoforge | Found Cep. Core Shell 41299 | -2/Protoforge | Found Prototype Processor 41299 | -2/Protoforge | Identified Exp. Core Analyzer 41310 | -2/Protoforge | Found Cep. Core Shell 41314 | -2/Protoforge | Found Cep. Core Shell 41317 | -2/Protoforge | Found Cep. Core Shell 41355 | -2/Protoforge | Spotted V629-d 41383 | -2/Protoforge | Scanned by Researcher 41408 | -2/Protoforge | Destroyed V629-d 41483 | -2/Protoforge | Spotted Decapitator 41483 | -2/Protoforge | Spotted Decapitator 41486 | -2/Protoforge | Spotted Decapitator 41486 | -2/Protoforge | Spotted Decapitator 41487 | -2/Protoforge | Destroyed Decapitator 41487 | -2/Protoforge | Destroyed Decapitator 41487 | -2/Protoforge | Destroyed Decapitator 41487 | -2/Protoforge | Destroyed Decapitator 41508 | -2/Protoforge | Destroyed 14 combat bots 41514 | -2/Protoforge | Found Cep. Antigrav Storage Unit 41518 | -2/Protoforge | Found Cep. Chromion Battery 41536 | -2/Protoforge | Spotted V610-x 41541 | -2/Protoforge | Destroyed V610-x 41546 | -2/Protoforge | Found Cep. NT7 Matterbank 41551 | -2/Protoforge | Found Prototype Processor 41552 | -2/Protoforge | Identified Exp. Melee Analysis Suite 41556 | -2/Protoforge | Found Cep. Matter Streamer 41559 | -2/Protoforge | Spotted V583-b 41562 | -2/Protoforge | Destroyed V583-b 41569 | -2/Protoforge | Found Cep. Antigrav Storage Unit 41586 | -2/Protoforge | Spotted V669-m 41590 | -2/Protoforge | Destroyed V669-m 41596 | -2/Protoforge | Found Prototype Processor 41597 | -2/Protoforge | Identified Exp. Armor Integrity Analyzer 41599 | -2/Protoforge | Found Prototype Device 41600 | -2/Protoforge | Identified Exp. Thermal Defense Suite 41640 | -2/Protoforge | Found Prototype Processor 41640 | -2/Protoforge | Identified Exp. Target Analyzer 41680 | -2/Protoforge | Spotted Immortal 41680 | -2/Protoforge | Spotted Immortal 41706 | -2/Protoforge | Destroyed Immortal 41710 | -2/Protoforge | Destroyed Immortal 41725 | -2/Protoforge | Spotted V476-k 41729 | -2/Protoforge | Found Exp. Kinecellerator 41733 | -2/Protoforge | Found Faulty Cep. Hypertargeting System 41738 | -2/Protoforge | Found Faulty Cep. Hypertargeting System 41746 | -2/Protoforge | Destroyed V476-k 41767 | -2/Protoforge | Found Cep. Weapon Articulator 41775 | -2/Protoforge | Found Cep. Weapon Articulator 41907 | -2/Protoforge | Destroyed 10 combat bots 41974 | -2/Protoforge | Spotted AP7-3 41974 | -2/Protoforge | Spotted AP7-3 41986 | -2/Protoforge | Destroyed AP7-3 41989 | -2/Protoforge | Destroyed AP7-3 42016 | -2/Protoforge | Found Cep. Impact Drone Bay 42021 | -2/Protoforge | Found Cep. Cloak Mesh 42026 | -2/Protoforge | Found Cep. Thermoelectric Network 42037 | -2/Protoforge | Found Cep. Impact Drone Bay 42039 | -2/Protoforge | Found Cep. Thermoelectric Network 42044 | -2/Protoforge | Found Cep. Cloak Mesh 42180 | -2/Protoforge | Found Faulty Cep. Gyrokinetic System 42302 | -2/Protoforge | Destroyed 23 combat bots 42321 | -2/Protoforge | Found Exp. Kinecellerator 42519 | -2/Protoforge | Found Faulty Cep. Lightning Penetrator 42568 | -2/Protoforge | Found Faulty Cep. Plasma Driver 42582 | -2/Protoforge | Found Faulty Cep. XC Strikerail 42587 | -2/Protoforge | Found Faulty Cep. Plasma Driver 42590 | -2/Protoforge | Found Faulty Cep. Plasma Driver 42617 | -2/Protoforge | Found Cep. Lightning Penetrator 42719 | -2/Protoforge | Destroyed 9 combat bots 42739 | -2/Protoforge | High security lockdown imminent 42739 | -2/Protoforge | Destroyed Superfortress 42741 | -2/Protoforge | Allies destroyed Decapitator 42750 | -2/Protoforge | Destroyed Immortal 42819 | -2/Protoforge | High security lockdown engaged 42820 | -2/Protoforge | Warped through subspace to slip node 42823 | -2/Protoforge | Found Cep. NT7 Matterbank 42832 | -2/Protoforge | Entered Access 42832 | -1/Access | Evolved 2 slots: Utility x2 43086 | -1/Access | Unchained authorized (6S-H0T) 43189 | -1/Access | Destroyed 11 combat bots 43281 | -1/Access | Destroyed 6S-H0T 43314 | -1/Access | Found Prototype Device 43315 | -1/Access | Identified Zeronet Interface 43318 | -1/Access | Found 6S-H0T's SS Cartridge 43320 | -1/Access | Found 6S-H0T's SS Cartridge 43328 | -1/Access | Destroyed 37 combat bots 43328 | -1/Access | Found Prototype Ballistic Gun 43329 | -1/Access | Identified 6S-H0T's Six Shooter 43332 | -1/Access | First assault squad dispatched 43352 | -1/Access | Found Quantum Capacitor 43449 | -1/Access | High security lockdown imminent 43449 | -1/Access | Destroyed Striker 43453 | -1/Access | Destroyed Striker 43529 | -1/Access | High security lockdown engaged 43542 | -1/Access | Spotted Executioner 43543 | -1/Access | Destroyed Executioner 43547 | -1/Access | Spotted Executioner 43547 | -1/Access | Destroyed Executioner 43560 | -1/Access | Garrison activated, responded to threat 43606 | -1/Access | Found Exp. Core Analyzer 43609 | -1/Access | Spotted Striker 43609 | -1/Access | Spotted Striker 43613 | -1/Access | Destroyed Striker 43617 | -1/Access | Destroyed Striker 43632 | -1/Access | Found Exp. Core Analyzer 43660 | -1/Access | Destroyed 27 combat bots 43745 | -1/Access | Destroyed 9 combat bots 43935 | -1/Access | Destroyed Investigator 43960 | -1/Access | Destroyed 7 combat bots 43981 | -1/Access | Destroyed Executioner 44010 | -1/Access | Destroyed 17 combat bots 44125 | -1/Access | Destroyed 9 combat bots 44149 | -1/Access | Destroyed Executioner 44150 | -1/Access | Destroyed Striker 44154 | -1/Access | Destroyed Executioner 44155 | -1/Access | Destroyed Striker 44160 | -1/Access | Destroyed Executioner 44183 | -1/Access | Destroyed 17 combat bots 44246 | -1/Access | Destroyed Executioner 44249 | -1/Access | Destroyed Executioner 44274 | -1/Access | Destroyed 7 combat bots 44279 | -1/Access | Destroyed Executioner 44306 | -1/Access | Destroyed Executioner 44347 | -1/Access | Destroyed 14 combat bots 44375 | -1/Access | Destroyed Executioner 44389 | -1/Access | Destroyed Executioner 44393 | -1/Access | Destroyed Executioner 44400 | -1/Access | Destroyed Striker 44403 | -1/Access | Destroyed Striker 44424 | -1/Access | Destroyed 20 combat bots 44489 | -1/Access | Destroyed Executioner 44490 | -1/Access | Destroyed Executioner 44493 | -1/Access | Destroyed Investigator 44505 | -1/Access | Destroyed Striker 44505 | -1/Access | Destroyed Executioner 44527 | -1/Access | Destroyed 19 combat bots 44672 | -1/Access | Destroyed Executioner 44711 | -1/Access | Destroyed 12 combat bots 44804 | -1/Access | Destroyed Striker 44807 | -1/Access | Destroyed Striker 44809 | -1/Access | Spotted Striker 44810 | -1/Access | Destroyed Striker 44820 | -1/Access | Destroyed Executioner 44834 | -1/Access | Destroyed Striker 44835 | -1/Access | Sterilization system engaged 44856 | -1/Access | Destroyed 22 combat bots 44905 | -1/Access | Destroyed Investigator 44930 | -1/Access | Destroyed 13 combat bots 45017 | -1/Access | Destroyed Executioner 45021 | -1/Access | Destroyed Executioner 45022 | -1/Access | Destroyed Striker 45110 | -1/Access | Destroyed B-99 Colossus 45134 | -1/Access | Energy Cycler disabled 45135 | -1/Access | Ambient heat levels rising (+10) 45209 | -1/Access | Destroyed B-99 Colossus 45233 | -1/Access | Destroyed B-99 Colossus 45285 | -1/Access | Ambient heat levels rising (+10) 45398 | -1/Access | Found Centrium Heavy Armor Plating 45402 | -1/Access | Found Centrium Heavy Armor Plating 45435 | -1/Access | Ambient heat levels rising (+10) 45585 | -1/Access | Ambient heat levels rising (+10) 45625 | -1/Access | Discovered new exit (range 6) 45633 | -1/Access | Entered Command 45747 | -1/Command | Found Active Sensor Suite 45883 | -1/Command | First assault squad dispatched 46033 | -1/Command | Destroyed 12 combat bots 46213 | -1/Command | High security lockdown imminent 46248 | -1/Command | Destroyed 17 combat bots 46293 | -1/Command | High security lockdown engaged 46350 | -1/Command | Spotted Striker 46352 | -1/Command | Spotted Striker 46355 | -1/Command | Destroyed Striker 46358 | -1/Command | Destroyed Striker 46468 | -1/Command | Phase Generator disabled 46597 | -1/Command | Spotted Executioner 46601 | -1/Command | Spotted Executioner 46604 | -1/Command | Destroyed Executioner 46605 | -1/Command | Destroyed Executioner 46608 | -1/Command | Spotted Striker 46609 | -1/Command | Spotted Striker 46610 | -1/Command | Destroyed Striker 46611 | -1/Command | Destroyed Striker 46624 | -1/Command | Spotted Executioner 46624 | -1/Command | Spotted Striker 46631 | -1/Command | Destroyed Executioner 46633 | -1/Command | Destroyed Striker 46648 | -1/Command | Spotted Investigator 46650 | -1/Command | Destroyed Investigator 46690 | -1/Command | Destroyed 32 combat bots 46690 | -1/Command | Found Prototype Launcher 46690 | -1/Command | Identified Containment Facilitator 46712 | -1/Command | Spotted Striker 46717 | -1/Command | Spotted Striker 46717 | -1/Command | Destroyed Striker 46720 | -1/Command | Spotted Striker 46720 | -1/Command | Spotted Executioner 46720 | -1/Command | Spotted Executioner 46720 | -1/Command | Destroyed Executioner 46726 | -1/Command | Destroyed Striker 46727 | -1/Command | Spotted Executioner 46727 | -1/Command | Spotted Executioner 46727 | -1/Command | Destroyed Executioner 46728 | -1/Command | Destroyed Executioner 46728 | -1/Command | Destroyed Executioner 46734 | -1/Command | Destroyed Striker 46737 | -1/Command | Destroyed Executioner 46771 | -1/Command | Destroyed 12 combat bots 46796 | -1/Command | Found Gamma Bomb Array 46859 | -1/Command | Spotted Investigator 46859 | -1/Command | Spotted Executioner 46860 | -1/Command | Destroyed Investigator 46861 | -1/Command | Spotted Striker 46861 | -1/Command | Spotted Striker 46861 | -1/Command | Spotted Striker 46861 | -1/Command | Destroyed Striker 46863 | -1/Command | Destroyed Executioner 46863 | -1/Command | Destroyed Striker 46867 | -1/Command | Destroyed Striker 46868 | -1/Command | Spotted Executioner 46868 | -1/Command | Spotted Executioner 46869 | -1/Command | Destroyed Executioner 46872 | -1/Command | Destroyed Executioner 46893 | -1/Command | Destroyed 20 combat bots 47031 | -1/Command | Spotted Striker 47040 | -1/Command | Destroyed Striker 47074 | -1/Command | Spotted Striker 47076 | -1/Command | Spotted Executioner 47076 | -1/Command | Destroyed Striker 47080 | -1/Command | Destroyed Executioner 47133 | -1/Command | Destroyed 18 combat bots 47426 | -1/Command | Spotted Executioner 47426 | -1/Command | Spotted Striker 47432 | -1/Command | Destroyed Striker 47434 | -1/Command | Destroyed Executioner 47446 | -1/Command | Spotted B-99 Colossus 47452 | -1/Command | Destroyed B-99 Colossus 47496 | -1/Command | Spotted Striker 47496 | -1/Command | Spotted Striker 47496 | -1/Command | Spotted Striker 47496 | -1/Command | Destroyed Striker 47500 | -1/Command | Destroyed Striker 47500 | -1/Command | Destroyed Striker 47530 | -1/Command | Destroyed 12 combat bots 47550 | -1/Command | Destroyed Executioner 47552 | -1/Command | Destroyed Executioner 47573 | -1/Command | Destroyed 8 combat bots 47620 | -1/Command | Found Prototype Device 47620 | -1/Command | Identified Adv. Kinecellerator 47971 | -1/Command | Spotted B-99 Colossus 47974 | -1/Command | Destroyed B-99 Colossus 48018 | -1/Command | Found Prototype Ballistic Gun 48018 | -1/Command | Identified Multirail 48154 | -1/Command | Found Exp. Core Analyzer 48388 | -1/Command | Found Active Sensor Suite 48544 | -1/Command | Destroyed Alpha 7 48552 | -1/Command | Destroyed Striker 48560 | -1/Command | Destroyed Executioner 48562 | -1/Command | Destroyed Executioner 48597 | -1/Command | Spotted Striker 48597 | -1/Command | Destroyed Striker 48601 | -1/Command | Destroyed Executioner 48603 | -1/Command | Destroyed Executioner 48614 | -1/Command | Destroyed B-99 Colossus 48622 | -1/Command | Destroyed Alpha 7 48651 | -1/Command | Destroyed 7 combat bots 48682 | -1/Command | Destroyed B-99 Colossus 48700 | -1/Command | Found Unknown Protection 48700 | -1/Command | Identified Hvy. Reflective Plating 49413 | -1/Command | Destroyed 32 combat bots 49536 | -1/Command | Destroyed 36 combat bots 49611 | -1/Command | Destroyed 17 combat bots 49698 | -1/Command | Destroyed 19 combat bots 50007 | -1/Command | Lost 4 parts (3u1w) 50026 | -1/Command | Destroyed 31 combat bots 50212 | -1/Command | Discovered new exit (range 15) 50459 | -1/Command | Destroyed 10 combat bots 50544 | -1/Command | Destroyed 11 combat bots 50552 | -1/Command | Build established: Scavenger-Construct 51162 | -1/Command | Destroyed 47 combat bots 51266 | -1/Command | Destroyed 31 combat bots 51304 | -1/Command | System corruption reached 10% 51333 | -1/Command | Destroyed 34 combat bots 51522 | -1/Command | Destroyed 7 combat bots 51696 | -1/Command | Build established: Construct 51796 | -1/Command | Destroyed 24 combat bots 52310 | -1/Command | Build established: Scavenger-Construct 52548 | -1/Command | Spotted M Guard 52548 | -1/Command | Spotted M Guard 52548 | -1/Command | Spotted Combat Programmer 52574 | -1/Command | Spotted Combat Programmer 52575 | -1/Command | Destroyed Combat Programmer 52591 | -1/Command | Destroyed Combat Programmer 52611 | -1/Command | Destroyed M Guard 52619 | -1/Command | Destroyed M Guard 52619 | -1/Command | All MAIN.C guards destroyed 52636 | -1/Command | Found Prototype Device 52636 | -1/Command | Identified Thermal Barrier 52648 | -1/Command | Found Prototype Reactor 52744 | -1/Command | Found Exp. Core Analyzer 52748 | -1/Command | Found Exp. Core Analyzer 52997 | -1/Command | Found Unknown Device 52997 | -1/Command | Identified Launcher Loader 53126 | -1/Command | Found Adv. Kinecellerator 53582 | -1/Command | Met MAIN.C 53589 | -1/Command | 0b10 Conduit disabled 53601 | -1/Command | Destroyed MAIN.C Shell 53602 | -1/Command | MAIN.C activated Command garrisons 53615 | -1/Command | Destroyed MAIN.C 53631 | -1/Command | Discovered new exit (range 41) 53631 | -1/Command | Discovered new exit (range 112) 53631 | -1/Command | Extracted map data and part IDs from MAIN.C's data core 53700 | -1/Command | Found Exp. System Purifier 54062 | -1/Command | Found Exp. Powered Armor 57079 | -1/Command | Found Cld. Nova Cannon 57153 | -1/Command | Found Exp. Core Analyzer 57656 | -1/Command | Found Adv. Powered Armor 58059 | -1/Command | Found Adv. Powered Armor 58428 | -1/Command | Warped through subspace to slip node 58428 | -1/Command | Discovered new exit (range 4) 58434 | -1/Command | Entered Access_0 58436 | -1/Access_0 | Met Architect 58437 | -1/Access_0 | Destroyed A8 58440 | -1/Access_0 | Architect warped through subspace 58473 | -1/Access_0 | Architect warped through subspace 58476 | -1/Access_0 | Subspace Access Node disabled 58504 | -1/Access_0 | Architect warped through subspace 58539 | -1/Access_0 | Architect warped through subspace 58568 | -1/Access_0 | Architect warped through subspace 58585 | -1/Access_0 | Architect warped through subspace 58589 | -1/Access_0 | Subspace Access Node disabled 58600 | -1/Access_0 | Architect warped through subspace 58630 | -1/Access_0 | Architect warped through subspace 58647 | -1/Access_0 | A6 warped into view 58649 | -1/Access_0 | Core integrity fell below 50% 58656 | -1/Access_0 | Destroyed A6 58660 | -1/Access_0 | Architect warped through subspace 58673 | -1/Access_0 | Subspace Access Node disabled 58681 | -1/Access_0 | Architect warped through subspace 58769 | -1/Access_0 | Architect warped through subspace 58788 | -1/Access_0 | Architect warped through subspace 58789 | -1/Access_0 | Found Exp. Weapon Cycler 58807 | -1/Access_0 | Architect warped through subspace 58817 | -1/Access_0 | Found Exp. Weapon Cycler 58819 | -1/Access_0 | Found Prototype Device 58835 | -1/Access_0 | Architect warped through subspace 58844 | -1/Access_0 | Identified Desublimator 58848 | -1/Access_0 | Architect warped through subspace 58878 | -1/Access_0 | Architect warped through subspace 58926 | -1/Access_0 | Destroyed A2 58928 | -1/Access_0 | Extracted Singularity Gate Test 138-C access codes from A2's data core 58935 | -1/Access_0 | Found Exp. Weapon Cycler 58946 | -1/Access_0 | A5 warped into view 58970 | -1/Access_0 | Allies destroyed A5 58970 | -1/Access_0 | Architect warped through subspace 59000 | -1/Access_0 | Lost 4 allies 59004 | -1/Access_0 | Architect warped through subspace 59005 | -1/Access_0 | Singularity Gate disabled 59031 | -1/Access_0 | Architect warped through subspace 59078 | -1/Access_0 | Architect warped through subspace 59080 | -1/Access_0 | Subspace Access Node disabled 59084 | -1/Access_0 | Lost 3 parts (3u) 59099 | -1/Access_0 | Destroyed Architect 59102 | -1/Access_0 | Extracted unknown sensor trigger ID from Architect's data core 59104 | -1/Access_0 | Found Prototype Hackware 59106 | -1/Access_0 | Found Prototype Hackware 59108 | -1/Access_0 | Found Prototype Hackware 59110 | -1/Access_0 | Found Hpw. Transdimensional Reconstructor 59126 | -1/Access_0 | Found Exp. Powered Armor 59280 | -1/Access_0 | Found Sigix Corpse 59415 | -1/Access_0 | A4 warped into view 59421 | -1/Access_0 | Destroyed A4 59959 | -1/Access_0 | A3 warped into view 59963 | -1/Access_0 | Destroyed A3 59967 | -1/Access_0 | Found Prototype Device 59967 | -1/Access_0 | Identified ST Field Compressor 60002 | -1/Access_0 | Destroyed 7 combat bots 60539 | -1/Access_0 | Found Hpw. Transdimensional Reconstructor 60640 | -1/Access_0 | Warped through subspace to slip node 60640 | -1/Access_0 | Discovered new exit (range 8) 60641 | -1/Access_0 | Warped through subspace to slip node 60649 | *** | Establishing 0b11! Last Messages --------------- 60437_ Enhanced Grunt destroyed. 60443_ Acquired 211 matter. 60517_ Penetrated by HV Slug. 60517_ Plasma Slug penetrates Enhanced Hunter. 60517_ Destroyed Prototype Ballistic Cannon. 60520_ Plasma Slug penetrates Earth. 60521_ HV Slug penetrates Earth. 60521_ Plasma Slug penetrates Enhanced Hunter. 60521_ Enhanced Hunter destroyed. 60535_ Plasma Slug penetrates Workstation. 60535_ Workstation disabled. 60539_ Acquired Hpw. Transdimensional Reconstructor. 60573_ LAW3WV T:3